Cogmind - Beta 13 @@@ ROGUE MODE // 2024.07.08 @ 16:53:08 Player: N.W.L Result: Heading to fleet! Performance ------------- Evolutions (9) 4500 Regions Visited (34) 6800 Robots Destroyed (526) 2630 Value Destroyed (23781) 23781 Prototype IDs (102) 2040 Alien Tech Used (5) 1000 Bonus (20984) 20984 TOTAL SCORE: 61735 Bonus ------- High Alert Combat Kills 3903 Follower Combat Kills 2397 Entered Garrisons 400 Network Hubs Disabled 400 Aligned with FarCom 300 Met Data Miner 300 Acquired ECA 300 Met Zhirov 300 Met Warlord at Base 500 MAIN.C Attacked Warlord 500 Warlord Defense Kills 1526 Built Enhanced Grunts 300 A7 Reached Mainframe 300 Met R17 at Cetus 500 Found Hidden Lab 3000 Used Core Reset Matrix 3000 Met R17 at Research 2000 Met Warlord at Research 2000 Pursued by Intercept 1000 Win 3000 Friendly Fire -4942 Cogmind --------- Core Integrity 1558/1600 Matter 138/300 Energy 263/280 System Corruption 2% Temperature Cool (12) Movement Treading (155) Location To Fleet Rendezvous Parts ------- > --- POWER (3) -------- Light Quantum Reactor Light Quantum Reactor > --- PROPULSION (8) --- Medium Treads Biometal Heavy Treads Advanced Heavy Siege Treads > --- UTILITY (11) ----- Experimental Heat Sink Experimental Coolant Injector Large Storage Unit Spectral Analyzer Experimental Targeting Computer Experimental Targeting Computer Experimental Phase Shifter Medium Regenerative Plating Advanced Hacking Suite Advanced System Shield Quantum Router > --- WEAPON (4) ------- Phase Gun Enhanced Nova Cannon Micro-nuke Launcher Hellfire Missile Launcher > --- INVENTORY (15) --- Medium Treads Layered Heavy Armor Plating Antimissile System Transdimensional Reconstructor Enhanced Nova Cannon Railgun Peak State ------------ > --- POWER ------------ Particle Reactor Light Quantum Reactor > --- PROPULSION ------- Biometal Heavy Treads Biometal Heavy Treads Biometal Heavy Treads Advanced Heavy Siege Treads > --- UTILITY ---------- Experimental Heat Sink Experimental Coolant Injector Spectral Analyzer Experimental Targeting Computer Experimental Targeting Computer Experimental Phase Shifter Medium Regenerative Plating Antimissile System Advanced Hacking Suite Advanced System Shield Quantum Router > --- WEAPON ----------- Phase Gun Enhanced Nova Cannon Enhanced Nova Cannon Railgun > --- INVENTORY -------- Layered Heavy Armor Plating Transdimensional Reconstructor Micro-nuke Launcher Hellfire Missile Launcher [Rating: 209] Favorites ----------- Power Heavy Deuterium Engine Engine Heavy Deuterium Engine Power Core Neutrino Core Reactor Quantum Reactor Propulsion Light Treads Treads Light Treads Leg Advanced Myomer Leg Wheel Compact Wheel Utility Huge Storage Unit Device Improved Cooling System Storage Huge Storage Unit Processor Core Analyzer Hackware Hacking Suite Protection Improved Medium Armor Plating Weapon Magnetic Acceleration Cannon Energy Gun Particle Gun Energy Cannon Phase Cannon Ballistic Gun Enhanced Autogun Ballistic Cannon Magnetic Acceleration Cannon Launcher Heavy Missile Launcher Special Weapon Enhanced Flamer Impact Weapon Great Maul Slashing Weapon Plasma Sword Special Melee Weapon Advanced Datajack Build | -11 -10 -10 -10 -9 -8 -8 -8 -7 -7 -7 -7 -7 -7 -6 -6 -6 -6 -6 -6 -5 -5 -5 -5 -4 -4 -4 -4 -4 -3 -3 -3 -3 -2 -1 ------- Run | Yrd Mat Min Exi Min Mat Gar Mat Fac Gar Fac Low Low Dat Pro Fac Ext Cet Arc Hub Fac Upp Upp Zhi Pro Fac Upp Upp War Pro Res Arm Lab Res Acc Slots Evolved 18 | . . . . . 4 . . 2 . . . . . . 2 . . . . 2 . . . . 2 . . . . 2 . . 2 2 Power 1 | . . . . . . . . . . . . . . . . . . . . . . . . . . . . . . 1 . . . . Propulsion 6 | . . . . . 1 . . 1 . . . . . . 1 . . . . 1 . . . . 1 . . . . 1 . . . . Utility 9 | . . . . . 2 . . 1 . . . . . . 1 . . . . 1 . . . . 1 . . . . . . . 1 2 Weapon 2 | . . . . . 1 . . . . . . . . . . . . . . . . . . . . . . . . . . . 1 . Parts Attached 554 | 5 14 2 3 . 30 14 31 9 15 21 7 3 5 2 6 10 15 8 17 35 16 . 16 12 30 10 20 37 20 21 61 5 46 8 Power 29 | . . 1 . . 1 1 1 1 1 . . . . . . . . . 1 1 . . . 2 1 . . 4 1 2 5 . 4 2 Engine 6 | . . 1 . . 1 1 1 1 1 . . . . . . . . . . . . . . . . . . . . . . . . . Core 3 | . . . . . . . . . . . . . . . . . . . . . . . . 2 . . . . . . . . 1 . Reactor 20 | . . . . . . . . . . . . . . . . . . . 1 1 . . . . 1 . . 4 1 2 5 . 3 2 Propulsion 107 | 3 4 . . . 5 1 13 3 5 3 3 1 . 1 2 4 2 . 2 9 4 . 4 . 3 1 9 5 5 3 10 . 1 1 Treads 86 | 1 2 . . . 5 1 13 3 5 3 3 1 . 1 2 4 2 . 2 2 1 . 1 . 2 . 7 5 5 3 10 . 1 1 Leg 14 | 2 2 . . . . . . . . . . . . . . . . . . 2 1 . 3 . 1 1 2 . . . . . . . Wheel 7 | . . . . . . . . . . . . . . . . . . . . 5 2 . . . . . . . . . . . . . Hover . | . . . . . . . . . . . . . . . . . . . . . . . . . . . . . . . . . . . Flight . | . . . . . . . . . . . . . . . . . . . . . . . . . . . . . . . . . . . Utility 169 | . 5 . 1 . 5 1 4 3 2 10 . . . . 4 3 3 6 9 14 2 . 2 1 9 1 3 12 5 9 24 2 26 3 Device 99 | . 2 . . . 2 1 1 2 . 8 . . . . 3 2 2 4 7 6 2 . 1 1 5 1 1 9 3 3 17 . 15 1 Storage 12 | . 2 . 1 . 1 . 1 . . . . . . . . . . . . . . . . . 1 . 1 . 1 2 . . 1 1 Processor 12 | . 1 . . . 1 . . 1 1 . . . . . . . . . . . . . . . 2 . . . . 2 2 . 2 . Hackware 11 | . . . . . 1 . 1 . . . . . . . . . . 1 . . . . . . 1 . . . . 2 1 1 2 1 Protection 35 | . . . . . . . 1 . 1 2 . . . . 1 1 1 1 2 8 . . 1 . . . 1 3 1 . 4 1 6 . Artifact . | . . . . . . . . . . . . . . . . . . . . . . . . . . . . . . . . . . . Weapon 249 | 2 5 1 2 . 19 11 13 2 7 8 4 2 5 1 . 3 10 2 5 11 10 . 10 9 17 8 8 16 9 7 22 3 15 2 Energy Gun 44 | . 3 . . . 4 . 1 . . 4 1 . . . . . 6 1 1 2 3 . 1 1 1 3 1 3 . . 4 1 3 . Energy Cannon 41 | . . . . . 2 . . . . . . . . 1 . 1 . . 1 3 2 . 1 1 3 1 3 3 2 1 6 2 8 . Ballistic Gun 66 | 2 2 . . . 11 4 10 1 2 1 . . . . . . 3 1 1 2 3 . 2 4 4 . 2 2 3 2 3 . 1 . Ballistic Cannon 33 | . . 1 1 . 1 1 . . 3 2 2 . 3 . . 2 1 . 1 1 1 . . . 5 1 1 1 . 2 3 . . . Launcher 33 | . . . . . . 2 . . 2 1 1 2 . . . . . . 1 2 1 . 2 3 2 3 1 2 . 2 2 . 2 2 Special Weapon 9 | . . . . . . . . . . . . . . . . . . . . . . . . . . . . 3 3 . 2 . 1 . Impact Weapon 15 | . . . . . 1 4 2 1 . . . . 1 . . . . . . . . . 1 . 2 . . 1 . . 2 . . . Slashing Weapon 2 | . . . . . . . . . . . . . . . . . . . . 1 . . 1 . . . . . . . . . . . Piercing Weapon . | . . . . . . . . . . . . . . . . . . . . . . . . . . . . . . . . . . . Special Melee Weapon 6 | . . . 1 . . . . . . . . . 1 . . . . . . . . . 2 . . . . 1 1 . . . . . Unidentified Prototypes 49 | . . . . . 4 . . . . 2 . . . . . . 5 . 2 2 1 . 2 . 3 . . 8 . 5 5 4 6 . Corrupted Parts 8 | . . . . . . . . . . . . . . . . . 1 1 2 . 1 . . . . . 2 1 . . . . . . System Corruption 40 | . . . . . . . . . . . . . . . . . 13 8 2 . 2 . . . . . 10 5 . . . . . . Parts Lost 119 | . 2 . . . . 1 6 1 11 4 2 1 . 2 1 1 . . 6 13 3 . . 8 9 4 15 . . . 25 . 1 3 Power 13 | . . . . . . 1 . . 1 . . . . . . . . . 1 1 . . . 2 1 . . . . . 4 . 1 1 Propulsion 45 | . . . . . . . 2 . 5 2 2 1 . 1 1 . . . 2 7 1 . . 2 1 2 7 . . . 7 . . 2 Utility 32 | . 1 . . . . . 1 1 2 2 . . . 1 . 1 . . 2 3 . . . 2 2 1 3 . . . 10 . . . Weapon 29 | . 1 . . . . . 3 . 3 . . . . . . . . . 1 2 2 . . 2 5 1 5 . . . 4 . . . Highest Loss Streak 12 | . 2 . . . . 1 3 1 10 1 1 1 . 2 1 1 . . 3 5 2 . . 6 5 2 12 . . . 8 . 1 1 To Critical Strikes 2 | . . . . . . . . . 1 . . . . . . . . . . . . . . . . . . . . . . . . 1 Average Slot Usage (%) 91 | . 84 93 100 100 98 100 99 96 97 99 98 96 90 94 93 98 95 90 90 78 78 88 88 76 79 88 85 88 99 89 68 39 77 76 Engine 4 | . . 7 14 14 9 9 9 7 5 7 7 7 7 7 6 6 6 6 4 . . . . . . . . . . . . . . . Reactor 2 | . . . . . . . . . . . . . . . . . . . 1 4 5 5 5 . . 5 5 5 5 9 7 . 7 7 Treads 23 | . 14 28 28 28 27 27 26 30 29 29 28 30 30 29 33 33 28 26 24 10 2 5 2 . 2 10 14 27 35 28 14 18 16 11 Leg 2 | . 13 . . . . . . . . . . . . . . . . . . 1 1 5 15 23 20 15 10 . . . . . . . Device 9 | . 10 14 14 14 9 9 4 4 1 6 7 7 7 7 6 11 13 13 11 14 17 17 16 12 11 13 12 11 7 8 6 4 10 13 Storage 6 | . 14 14 14 14 9 9 9 7 7 7 7 7 7 7 6 6 6 6 6 5 5 5 5 5 5 5 5 5 5 4 3 . . . Processor 11 | . 2 . . . 8 9 9 11 15 15 15 15 15 15 13 13 13 13 13 11 11 11 11 11 14 15 15 15 15 14 13 13 12 11 Hackware 4 | . . . . . 9 9 12 10 7 6 . . . . . . . . . . . . . . 4 5 5 5 5 7 5 1 5 10 Protection 2 | . . . . . . . 1 . 4 . 7 7 7 2 6 5 6 2 5 7 5 5 5 1 . . . 3 7 1 2 . 4 3 Energy Gun 2 | . 13 5 . . 1 . . . . 3 6 . . . . . 5 6 2 1 7 5 . 1 . 4 4 . . . . . 7 3 Energy Cannon 1 | . . . . . . . . . . . . . . 6 6 5 . . 3 1 1 5 . 1 4 1 3 . 2 . 1 1 6 6 Ballistic Gun 8 | . 14 14 14 14 22 23 25 17 8 . 7 2 . . . . 3 13 12 7 2 . . 7 3 5 5 5 6 8 4 . . 2 Ballistic Cannon 5 | . . 8 4 14 . . . . 14 18 8 15 . 15 13 13 9 . . 3 . . . . 3 2 . . 3 3 5 . . . Naked Turns . | . . . . . . . . . . . . . . . . . . . . . . . . . . . . . . . . . . . Heaviest Build 162 | 3 16 21 31 31 102 103 100 107 116 117 119 123 123 124 132 132 131 121 132 141 150 150 150 117 134 130 129 155 152 162 157 14 101 102 Greatest Support 305 | 3 40 40 40 40 60 60 60 88 88 80 83 83 83 83 110 112 150 150 180 210 42 42 110 110 115 110 119 169 222 250 252 3 305 305 Greatest Overweight (x) 38 | . . . . . 1 1 2 1 1 1 1 1 1 1 1 1 1 . . 12 5 3 3 4 2 1 38 1 . . 2 4 . . Average Overweight (x) . | . . . . . . 1 1 1 1 1 1 1 1 1 1 1 . . . 1 4 3 1 1 . 1 . . . . . . . . Largest Inventory Capacity 25 | 5 10 10 15 15 25 25 25 25 25 25 25 25 25 25 25 25 25 25 25 25 25 25 25 25 25 25 25 25 25 25 25 5 5 15 Average Capacity 22 | 5 8 10 10 15 22 25 25 25 25 25 25 25 25 25 25 25 25 25 25 25 25 25 25 25 25 25 25 25 25 25 22 5 5 6 Most Carried 25 | 5 9 10 10 12 25 25 25 25 25 25 25 25 25 25 25 25 25 25 25 25 25 24 25 25 25 25 25 25 25 25 25 5 5 7 Average Carried 21 | 3 7 9 10 11 19 24 24 24 17 24 24 24 23 24 24 24 24 24 23 24 24 24 24 24 23 23 23 24 24 24 19 4 4 5 Final Capacity 25 | 5 10 10 15 15 25 25 25 25 25 25 25 25 25 25 25 25 25 25 25 25 25 25 25 25 25 25 25 25 25 25 5 5 5 15 Final Carried 25 | 5 9 10 10 12 25 25 25 25 17 25 25 25 25 24 25 25 25 25 25 24 24 24 25 25 25 25 23 25 25 25 5 5 5 7 Class Distribution -------------------- 23% | Gunner 21% | Scavenger-Gunner 12% | Scavenger-Mutant 12% | Mutant 10% | Scavenger-Tank 8% | Scavenger-Skirmisher 3% | Commander-Tank Dominant Class ---------------- Mutant | -10/Materials Mutant | -10/Mines Mutant | -10/Exiles Mutant | -9/Mines Scavenger-Skirmisher | -8/Materials Scavenger-Skirmisher | -8/Garrison Scavenger-Tank | -8/Materials Scavenger-Mutant | -7/Factory Gunner | -7/Garrison Gunner | -7/Factory Gunner | -7/Lower Caves Scavenger-Mutant | -7/Lower Caves Scavenger-Mutant | -7/Data Miner Gunner | -6/Proximity Caves Gunner | -6/Factory Tank | -6/Extension Commander-Tank | -6/Cetus Scavenger-Gunner | -6/Archives Scavenger-Tank | -6/Hub_04(d) Scavenger-Tank | -5/Factory Scavenger-Tank | -5/Upper Caves Scavenger-Tank | -5/Upper Caves Scavenger-Mutant | -5/Zhirov Mutant | -4/Proximity Caves Scavenger-Gunner | -4/Factory Scavenger-Gunner | -4/Upper Caves Scavenger-Gunner | -4/Upper Caves Scavenger-Mutant | -4/Warlord Scavenger-Gunner | -3/Proximity Caves Scavenger-Gunner | -3/Research Scavenger-Gunner | -3/Armory Mutant | -3/Lab Scavenger-Gunner | -2/Research Hacker-Gunner | -1/Access Resources | -11 -10 -10 -10 -9 -8 -8 -8 -7 -7 -7 -7 -7 -7 -6 -6 -6 -6 -6 -6 -5 -5 -5 -5 -4 -4 -4 -4 -4 -3 -3 -3 -3 -2 -1 ----------- Run | Yrd Mat Min Exi Min Mat Gar Mat Fac Gar Fac Low Low Dat Pro Fac Ext Cet Arc Hub Fac Upp Upp Zhi Pro Fac Upp Upp War Pro Res Arm Lab Res Acc Matter Collected 17040 | 214 570 71 10 169 844 309 1887 67 816 1312 374 213 . 190 342 405 240 328 593 661 428 . 185 207 924 324 471 574 634 995 1769 . 754 160 Remotely 1606 | . . . . . . . . . . 351 . . . . 221 . . . . 134 . . . . 129 . . . . . 771 . . . Salvage Created 24068 | . 679 155 . 373 1322 309 2698 253 480 1186 588 200 . 151 419 710 141 378 1834 1311 327 39 393 423 902 611 902 528 1458 722 2033 . 610 1933 Parts 1089 | . 43 16 . 15 70 26 160 17 23 49 20 17 . 9 13 23 8 27 88 58 9 2 3 26 41 24 32 18 49 30 84 . 23 66 Haulers Intercepted 17 | . 1 . . . 4 . 3 . . 1 . . . . 1 . . . 1 . . . . . . . . . . 3 . . 2 1 Recyclers Shooed 11 | . . 1 . 1 1 . 1 . . 2 . . . . . . . . . 1 . . . . 1 . . . 1 1 . . . 1 Parts Field Recycled . | . . . . . . . . . . . . . . . . . . . . . . . . . . . . . . . . . . . Retrieved Matter . | . . . . . . . . . . . . . . . . . . . . . . . . . . . . . . . . . . . Parts Self-Destructed 143 | . . . . . . . . . . . 11 16 . 9 . . . . . . 6 . 1 22 . 10 28 . 40 . . . . . Prevented 15 | . . . . . . . . . . . 3 . . . . . . . . . 2 . . 1 . 5 3 . 1 . . . . . Kills | -11 -10 -10 -10 -9 -8 -8 -8 -7 -7 -7 -7 -7 -7 -6 -6 -6 -6 -6 -6 -5 -5 -5 -5 -4 -4 -4 -4 -4 -3 -3 -3 -3 -2 -1 ------- Run | Yrd Mat Min Exi Min Mat Gar Mat Fac Gar Fac Low Low Dat Pro Fac Ext Cet Arc Hub Fac Upp Upp Zhi Pro Fac Upp Upp War Pro Res Arm Lab Res Acc Combat Hostiles Destroyed 392 | . 15 4 . 4 14 13 43 4 19 24 7 13 . 4 6 12 1 1 20 21 6 . . 14 22 9 15 11 13 1 46 . 12 18 Melee 2 | . . . . 1 . . . . . . . . . . . . . . . 1 . . . . . . . . . . . . . . Guns 177 | . 15 4 . 2 13 7 43 4 3 5 2 . . . . . . 1 16 8 3 . . 5 4 . 8 5 9 1 15 . 2 2 Cannons 110 | . . . . 1 1 1 . . 7 19 1 3 . 4 6 12 1 . 1 2 . . . 1 12 1 4 . 4 . 17 . 1 11 AOE 96 | . . . . . . 5 . . 9 . 4 10 . . . . . . 3 10 3 . . 8 6 8 2 5 . . 13 . 9 1 Classes Destroyed 26 | . 7 2 . 1 3 . 2 1 . . . . . . . . . . 1 1 2 . . . . . 1 2 . . 2 . . 1 Worker 24 | . 2 . . . 5 . 7 1 . . . . . . . . . . 2 3 . . . . 1 . . . . 2 . . . 1 Builder 19 | . 1 . . 1 1 . 2 . . 1 . . . . . . . . 1 4 . . . . . . . . 1 4 . . . 3 Tunneler 7 | . . 1 . . . . 3 . . 1 . . . . . . . . . . . . . . . . . . . . . . . 2 Hauler 17 | . 1 . . . 4 . 3 . . 1 . . . . 1 . . . 1 . . . . . . . . . . 3 . . 2 1 Recycler 24 | . . 1 . 3 2 . 2 . . 4 . . . . . . . . 1 4 . . . . 2 . . . 1 2 . . . 2 Carrier 1 | . . . . . . . . . . . . . . . . . . . . . . . . . . . . . . . . . . 1 Minesweeper 4 | . . . . . . . . . . . . . . . . . . . . . 1 . . . . 1 1 . 1 . . . . . Mechanic 5 | . . . . . 1 . 1 . . . . . . . 2 . . . . . . . . . . . . . . . . . . 1 Operator 12 | . 1 . . . . . . 1 . . . . . . . . . 9 . . . . . . . . . . . . . . 1 . Watcher 14 | . 2 . . . 3 . 3 . . . . . . . . . 2 . . . . . . . 3 . . . . . 1 . . . Swarmer 105 | . 3 4 . 1 2 8 5 . 7 4 5 13 . . . . . . 2 4 5 . . 10 14 5 1 2 1 . . . 9 . Saboteur 2 | . . . . . . . . . . . . . . . . . . . . 1 . . . . . . . 1 . . . . . . Grunt 134 | . 12 . . 2 4 3 26 . 8 11 . . . 3 4 4 1 . 6 9 . . . 2 . . 4 3 5 1 18 . . 8 Brawler 6 | . . . . 1 . . . . . . . . . . . . . . . 1 . . . . . . 1 1 1 . 1 . . . Duelist 19 | . . . . . . . 2 . . . . . . . . 1 . . . 2 . . . . . . 4 . 1 . 7 . . 2 Protector 8 | . . . . . . . 1 . . . . . . . . . . . 2 1 . . . . . . 1 . . . 3 . . . Sentry 45 | . . . . . 7 2 8 2 . 5 1 . . . . 6 . 1 3 . 1 . . . 1 1 2 . 3 . 1 . . 1 Demolisher 3 | . . . . . . . . . . . . . . . . . . . . . . . . . . . . . . . 2 . 1 . Specialist 6 | . . . . . . . . . . . . . . . . . . . 1 . . . . . . . . 1 . . 4 . . . Hunter 24 | . . . . . 1 . 1 1 2 . 1 . . . . 2 . . . 2 . . . 2 2 2 . . 2 . 4 . . 2 Programmer 27 | . . . . . . . . 1 2 4 . . . 1 2 . . . . 2 . . . . 5 1 1 . . . 5 . . 3 Heavy 1 | . . . . . . . . . . . . . . . . . . . . . . . . . . . . . . . 1 . . . Enhanced Grunt 2 | . . . . . . . . . . . . . . . . . . . 2 . . . . . . . . . . . . . . . Lightning 6 | . . . . . . . . . . . . . . . . . . . 6 . . . . . . . . . . . . . . . Tracker 3 | . . . . . . . . . . . . . . . . . . . . . . . . . . . . . . . . . 1 2 Striker 3 | . . . . . . . . . . . . . . . . . . . . . . . . . . . . 2 . . . . 1 . Executioner 1 | . . . . . . . . . . . . . . . . . . . . . . . . . . . . 1 . . . . . . Decomposer 1 | . . . . . . . . . . . 1 . . . . . . . . . . . . . . . . . . . . . . . Packrat 2 | . . . . . . . . . . . 1 . . . . . . . . . 1 . . . . . . . . . . . . . Samaritan 4 | . . . . . . . . . . . . . . . . . . . . . 1 1 . 1 . 1 . . . . . . . . Butcher 1 | . . . . . . . . . . . . . . . . . . . . . . . . . . . . . . . . . 1 . Guerrilla 2 | . . . . . . . . . . . . . . . . . . . 2 . . . . . . . . . . . . . . . Mutant 2 | . . . . . . . . . . . . . . . . . . . . . . . . . . . 1 1 . . . . . . Best Kill Streak 11 | . 5 4 . 5 5 4 5 2 9 7 6 4 . 3 5 3 1 3 5 11 5 . . 5 8 7 9 4 5 4 10 . 9 7 Combat Bots Only 9 | . 4 3 . 3 3 4 5 1 9 7 6 4 . 3 4 3 1 1 4 8 5 . . 5 7 7 9 4 4 1 9 . 8 7 Max Kills in Single Turn 6 | . 2 1 . 1 2 3 2 2 2 1 3 4 . 1 1 2 1 1 3 5 3 1 . 4 3 5 1 3 2 3 3 . 6 3 Gunslinging 1 | . 1 . . . . . . . . . . . . . . . . . 1 . . . . . . . . . . . 1 . . . Exploded 5 | . . . . . . 3 . . 2 . 3 4 . . . . . . 2 4 3 . . 4 3 5 1 3 . . 3 . 5 1 Melee 1 | . . . . 1 . . . . . . . . . . . . . . . 1 . . . . . . . . . . . . . . Uniques/NPCs Destroyed 1 | . . . . . . . . . . . . . . . . . 1 . . . . . . . . . . . . . . . . . A7 (-6/Cetus) Combat | -11 -10 -10 -10 -9 -8 -8 -8 -7 -7 -7 -7 -7 -7 -6 -6 -6 -6 -6 -6 -5 -5 -5 -5 -4 -4 -4 -4 -4 -3 -3 -3 -3 -2 -1 -------- Run | Yrd Mat Min Exi Min Mat Gar Mat Fac Gar Fac Low Low Dat Pro Fac Ext Cet Arc Hub Fac Upp Upp Zhi Pro Fac Upp Upp War Pro Res Arm Lab Res Acc Hostile Shots Fired 2443 | . 82 12 . 27 81 39 175 162 92 190 43 28 . 24 26 67 17 7 109 169 35 . . 60 139 51 109 28 63 8 384 3 89 124 Missed 682 | . 24 1 . 9 23 15 39 60 26 65 12 3 . 6 11 23 5 1 15 29 7 . . 15 49 19 28 8 18 2 91 . 33 45 Damage Taken 32523 | . 634 79 . 178 732 232 2116 761 1173 1576 394 428 . 328 419 472 275 169 2718 2696 305 . . 840 1514 541 1761 515 588 200 7393 76 1389 2021 Core 3208 | . 140 8 . 48 21 43 264 70 126 77 55 26 . 35 19 . . 27 69 251 35 . . 57 283 95 255 88 37 19 971 . 47 42 Absorbed by Shields 1371 | . . . . . . 8 140 169 19 . . . . . . 140 85 . . . . . . . 64 113 183 189 . 59 202 . . . Reduced by Siege Mode 961 | . . . . . . . . . . . . . . . . . . . 218 46 . . . . . . . . . . 372 . . 325 Redirected to Shielding 155 | . . . . . . . . . . . . . . . . . . . . . . . . 155 . . . . . . . . . . Ignored by Resistances 691 | . . . . . . . . . . . . . . . . . . . 43 165 112 . . . . . 93 76 83 . 119 . . . Regen/Repaired (Parts) 1425 | . . . . . 119 . 141 . . 310 . . . . 52 . . . . . . . . . 42 . . 423 . . . . 19 319 Core Remaining (%) 59 | 100 . . . 21 . . 40 . . . . . . 44 . . . . 86 . . . . 65 . . . . 27 . . 23 96 97 Volleys Fired 1405 | . 73 13 3 20 70 40 132 18 38 57 28 9 . 54 24 48 24 21 68 54 39 26 5 31 76 23 55 50 86 31 101 8 25 55 Largest 4 | . 2 2 1 2 3 3 3 3 3 3 3 3 . 3 3 3 3 3 3 3 3 1 1 3 3 3 3 3 3 3 3 1 4 4 Hottest 363 | . 85 85 35 55 150 92 84 84 122 178 155 131 . 191 191 191 346 150 285 205 180 80 33 150 215 205 228 183 218 136 256 120 363 363 Shots Fired 2925 | . 134 26 3 39 204 59 378 50 71 164 45 22 . 73 53 91 42 55 160 127 50 27 6 47 133 50 108 79 143 63 199 8 53 163 Gun 1796 | . 134 23 . 19 195 49 378 50 32 35 36 4 . . . . 32 55 127 86 49 26 6 38 48 28 61 42 51 31 81 . 18 62 Cannon 1041 | . . 3 3 20 9 6 . . 29 129 7 14 . 73 53 91 10 . 32 36 . 1 . 3 84 19 43 34 69 32 105 8 33 95 Launcher 56 | . . . . . . 4 . . 10 . 2 4 . . . . . . 1 5 1 . . 6 1 3 4 1 . . 6 . 2 6 Special 32 | . . . . . . . . . . . . . . . . . . . . . . . . . . . . 2 23 . 7 . . . Kinetic 1895 | . 68 16 3 39 177 55 378 50 61 130 14 18 . 23 30 43 23 39 103 95 8 . 6 25 77 29 41 42 77 59 139 . 3 24 Thermal 834 | . 66 10 . . 23 . . . . 25 7 . . 50 23 48 8 15 52 22 28 26 . 13 46 11 54 34 65 4 30 8 33 133 Explosive 66 | . . . . . . 4 . . 10 . 2 4 . . . . . . 1 5 1 . . 6 1 3 4 3 1 . 13 . 2 6 Electromagnetic 113 | . . . . . 4 . . . . 9 22 . . . . . 11 1 4 5 13 1 . 3 9 7 9 . . . . . 15 . Entropic 17 | . . . . . . . . . . . . . . . . . . . . . . . . . . . . . . . 17 . . . Robot Hit Streak 53 | . 8 8 . 8 12 13 13 6 11 16 7 2 . 8 10 14 19 21 13 16 10 2 7 5 10 7 28 30 52 53 26 . 12 33 Robot Miss Streak 14 | . 7 2 . 4 5 3 5 4 14 7 2 6 . 2 1 3 2 3 3 4 4 3 . 4 4 5 1 1 1 5 2 . 4 2 Penetration Max 2 | . . . . . . . 1 1 . . . . . . . . . . 1 . . . 1 . . . 1 2 1 2 1 . 1 1 Secondary Targets 23 | . 2 . . . 1 . 6 . . . 1 . . . . . . 1 4 . 1 . . 1 . . . 2 . . 4 . . . Max Gunslinging Chain 1 | . 1 . . . 1 . 1 . . . 1 . . . . . . 1 1 . 1 . . 1 . . . 1 . . 1 . . . Shots Hit Robots 1682 | . 73 19 4 23 126 20 229 31 38 93 27 4 1 20 31 39 25 31 100 73 20 4 11 21 60 25 61 56 94 36 147 . 35 105 Core Hits 1038 | . 36 9 . 9 48 16 109 12 36 51 20 14 . 7 12 25 10 19 71 94 9 2 4 28 37 35 34 35 43 20 113 . 26 54 Critical Kills 29 | . . . . . 2 . 2 1 . . . . . . . . . 3 5 2 . . 2 1 . . . 1 4 . 1 . 1 4 Critical Parts Destroyed 42 | . . . . . 2 . 2 . . . . . . . . . 1 1 10 2 1 . 2 . . . 4 4 3 4 6 . . . Critical Strikes 109 | . 5 . . 1 5 . 4 2 1 6 . 1 . . 3 1 1 5 15 6 1 . 4 1 3 1 6 7 8 4 11 . 2 5 Burn 7 | . 5 . . . 1 . . . . . . . . . . . . . . . . . . . . . . . . . . . . 1 Meltdown 6 | . . . . . . . . . . . . . . . . . . . . . . . . . . . . . 1 . . . 1 4 Destroy 63 | . . . . . 4 . 3 2 . . . . . . . . 1 5 15 4 1 . 4 1 . . 4 6 6 4 3 . . . Blast 22 | . . . . 1 . . . . 1 6 . 1 . . 3 1 . . . 2 . . . . 3 1 . . . . 3 . . . Corrupt 3 | . . . . . . . . . . . . . . . . . . . . . . . . . . . 2 . . . . . 1 . Smash 2 | . . . . . . . 1 . . . . . . . . . . . . . . . . . . . . . . . 1 . . . Sever 3 | . . . . . . . . . . . . . . . . . . . . . . . . . . . . 1 1 . 1 . . . Detonate 3 | . . . . . . . . . . . . . . . . . . . . . . . . . . . . . . . 3 . . . Melee Attacks 85 | . . . 4 . 5 9 13 8 . . . . 1 . . . . . . . . . 6 . 5 . . 19 11 . 4 . . . Impact 56 | . . . . . 5 9 13 8 . . . . . . . . . . . . . . 1 . 5 . . 11 . . 4 . . . Slashing 5 | . . . . . . . . . . . . . . . . . . . . . . . 5 . . . . . . . . . . . Piercing . | . . . . . . . . . . . . . . . . . . . . . . . . . . . . . . . . . . . Sneak Attacks 27 | . . . 4 . 1 . 3 . . . . . 1 . . . . . . . . . . . . . . 7 11 . . . . . Combat Hostiles . | . . . . . . . . . . . . . . . . . . . . . . . . . . . . . . . . . . . Follow-up Attacks 1 | . . . . . . . . . . . . . . . . . . . . . . . 1 . . . . . . . . . . . Damage Inflicted 63654 | . 1051 292 . 357 2135 782 4742 663 2017 2762 1018 729 . 698 1016 1434 773 907 4036 3650 761 122 510 1268 3508 1253 2857 3407 2753 1305 9321 . 2627 4900 Guns 26528 | . 1051 255 . 170 1927 290 4329 663 355 405 514 . . . . . 674 907 2508 1335 472 122 52 348 684 394 1293 1276 1214 753 3070 . 386 1081 Cannons 18550 | . . 37 . 178 140 45 . . 486 2347 96 88 . 698 1016 1434 99 . 591 554 . . . 85 1542 254 802 276 1197 552 2379 . 753 2901 Explosions 16680 | . . . . . . 447 . . 1176 . 408 641 . . . . . . 935 1740 289 . . 835 1282 605 756 1755 . . 3440 . 1488 883 Melee 1004 | . . . . . 68 . 367 . . . . . . . . . . . . . . . 458 . . . . . . . 111 . . . Ramming 140 | . . . . 9 . . 46 . . 10 . . . . . . . . 2 21 . . . . . . 6 . . . 11 . . 35 Kinetic 29311 | . 441 146 . 348 1715 335 4329 663 841 2347 148 88 . 375 624 879 419 585 2040 1416 80 . 52 261 1346 461 861 1276 1827 1263 3871 . 81 193 Thermal 14367 | . 610 146 . . 273 . . . . 264 94 . . 323 392 555 161 289 989 428 133 122 . 87 1364 97 1048 276 926 42 802 . 1157 3789 Explosive 14450 | . . . . . . 447 . . 1176 . 408 641 . . . . . . 288 1740 249 . . 835 465 580 756 1755 . . 3050 . 1177 883 Electromagnetic 2806 | . . . . . 79 . . . . 141 368 . . . . . 193 33 717 45 299 . . 85 333 115 186 . . . . . 212 . Impact 616 | . . . . . 68 . 367 . . . . . . . . . . . . . . . 70 . . . . . . . 111 . . . Slashing 798 | . . . . . . . . . . . . . . . . . . . . . . . 388 . . . . 100 . . 310 . . . Piercing . | . . . . . . . . . . . . . . . . . . . . . . . . . . . . . . . . . . . Entropic 1166 | . . . . . . . . . . . . . . . . . . . . . . . . . . . . . . . 1166 . . . Highest Corruption 29 | . . . . . . . . . 1 8 8 8 8 9 1 1 14 14 22 6 8 8 8 8 1 4 14 14 . 5 29 29 3 2 Average Corruption 6 | . . . . . . . . . 1 6 8 8 8 8 1 1 10 8 15 4 6 8 8 8 1 2 8 9 . 2 15 28 3 1 Corruption Purged 22 | . . . . . . . . . . . . . . . . . . 22 . . . . . . . . . . . . . . . . Corruption Blocked 33 | . . . . . . . . . . . . . . . . . . . . . . . . . . . . . . . . . 33 . Effects 512 | . . . . . . . . . 1 91 47 39 4 45 2 10 20 10 13 5 19 7 10 24 4 13 45 2 . 17 52 5 25 2 Message Errors 114 | . . . . . . . . . . 17 12 7 1 13 1 2 3 3 2 1 5 3 3 2 2 3 11 1 . 5 8 1 7 1 Matter Fused 111 | . . . . . . . . . . 21 12 12 1 5 . 3 3 3 3 1 4 . 2 6 . 5 10 . . 3 11 1 5 . Heat Flow Errors 65 | . . . . . . . . . . 16 4 4 . 6 . . 2 . 3 . 5 1 1 4 . 1 1 1 . 3 9 1 2 1 Energy Discharges 60 | . . . . . . . . . . 9 6 5 1 8 . 3 6 2 . 1 . 1 3 2 . 2 7 . . 1 2 . 1 . Parts Rejected 9 | . . . . . . . . . . 1 . . . . . . . . 1 1 . . . 1 . . 1 . . . 3 . 1 . Parts Fused 8 | . . . . . . . . . . 2 . 1 . . . . . 1 . . . . . . . . . . . 1 2 1 . . Data Loss (minor) 49 | . . . . . . . . . 1 14 7 5 . 3 . 1 2 . 1 1 2 . . 2 1 1 5 . . . 1 . 2 . Data Loss (major) 26 | . . . . . . . . . . 3 1 1 1 1 1 1 2 . . . . 1 . 2 . 1 1 . . 1 3 1 5 . Misfires 27 | . . . . . . . . . . 4 3 2 . 2 . . . 1 1 . 2 1 1 3 . . 2 . . 2 2 . 1 . Alerts 13 | . . . . . . . . . . 3 1 1 . 2 . . . . . . . . . . 1 . 1 . . 1 2 . 1 . Misdirections 2 | . . . . . . . . . . . . . . . . . . . . . . . . . . . . . . . 2 . . . Weapon Failures 28 | . . . . . . . . . . 1 1 1 . 5 . . 2 . 2 . 1 . . 2 . . 6 . . . 7 . . . Overload Shots 3 | . . . . . . . . . . . . . . . . . 2 . 1 . . . . . . . . . . . . . . . Overflow Damage 1660 | . . 1 . . 28 28 287 . 5 67 . 59 . 34 15 26 . . 10 21 40 . 150 16 310 . 93 9 42 5 143 . 155 116 Projectiles 476 | . . 1 . . . . . . 5 67 . . . 34 15 26 . . 3 . . . . . 38 . 93 . 42 5 43 . 10 94 Explosions 676 | . . . . . . 28 . . . . . 59 . . . . . . 7 21 40 . . 16 272 . . 9 . . 57 . 145 22 Melee 508 | . . . . . 28 . 287 . . . . . . . . . . . . . . . 150 . . . . . . . 43 . . . Knockbacks 87 | . . . . . 1 . . . 8 31 . . . 2 . 7 . . 4 4 . . . . 7 1 1 . 5 . 16 . . . Impact 1 | . . . . . . . . . . . . . . . . . . . . . . . . . . . . . . . 1 . . . Kinetic 82 | . . . . . 1 . . . 8 30 . . . 2 . 7 . . 3 4 . . . . 7 1 1 . 5 . 13 . . . Secondary 4 | . . . . . . . . . . 1 . . . . . . . . 1 . . . . . . . . . . . 2 . . . Self-Inflicted Damage 1107 | . . . . . . . . . 41 . 61 70 . . 148 . . . 136 89 48 . . 108 133 19 42 . . . 212 . . . Shots 28 | . . . . . . . . . 1 . 2 2 . . 2 . . . 3 4 2 . . 5 2 1 1 . . . 3 . . . Rammed 14 | . . . . 3 . . 4 . . 1 . . . . . . . . . 1 . . . . . . . . . . 1 . . 4 Targets Rammed 19 | . . . . 4 . . 6 . . 1 . . . . . . . . 1 1 . . . . . . 1 . . . 1 . . 4 Kicked 1 | . . . . . . . . . . . . . . . . . . . . . . . . . . . 1 . . . . . . . Crushed 4 | . . . . 1 . . 2 . . . . . . . . . . . 1 . . . . . . . . . . . . . . . Highest Temperature 395 | . 171 . . . 253 64 282 45 60 395 246 237 . 224 120 185 252 18 203 288 204 81 148 188 2 130 189 203 252 219 339 44 196 198 Average Temperature 66 | . 74 . . . 97 22 46 10 23 72 75 75 . 95 47 62 64 4 70 105 95 53 107 89 2 62 76 100 61 91 62 44 84 100 Received Heat Transfer 5249 | . 327 . . 30 234 48 893 207 162 504 48 . . 117 84 55 43 18 354 367 9 . . 33 18 8 274 36 87 43 926 . 18 306 Effects 4 | . . . . . 1 . . . . . . . . . . . . . . . . . . . . . . 2 . . 1 . . . Shutdowns 1 | . . . . . . . . . . . . . . . . . . . . . . . . . . . . . . . 1 . . . Energy Bleed 1 | . . . . . 1 . . . . . . . . . . . . . . . . . . . . . . . . . . . . . Interference 2 | . . . . . . . . . . . . . . . . . . . . . . . . . . . . 2 . . . . . . Siege Activations 12 | . . . . . . . . . . . . . . . . . 1 . 2 2 . . . . . . . . . 1 5 . . 1 Total Turns 340 | . . . . . . . . . . . . . . . . . 27 . 118 28 . . . . . . . . . 4 105 . . 58 Longest Duration 67 | . . . . . . . . . . . . . . . . . 27 . 67 17 . . . . . . . . . 4 40 . . 58 Robots Corrupted 5 | . . . . . . . . . . . . . . . . . . . 2 . 2 . . . . . 1 . . . . . . . Combat Hostiles 1 | . . . . . . . . . . . . . . . . . . . . . . . . . . . 1 . . . . . . . Parts Fried 30 | . . . . . 3 . 4 . . . . . . . . 1 2 1 6 . 6 . . . 2 . 3 . . . . . 2 . Impact Corruptions 10 | . . . . . 1 . 6 . . . . . . . . . . . . . . . . . . . . . . 1 2 . . . Robots Melted 6 | . . . . . . . . . . . . . . . . . . . . . . . . . . . . . 1 . . . 1 4 Combat Hostiles 4 | . . . . . . . . . . . . . . . . . . . . . . . . . . . . . . . . . . 4 Parts Melted 26 | . 2 . . . 1 . . . . . . . . 2 . 1 . . 1 1 . . . . 1 . . . 3 . . . 1 13 Heat Transferred 16709 | . 1887 333 . . 703 . . . . 592 222 . . 370 444 666 131 370 667 481 185 148 . 111 1055 111 1258 259 1369 37 536 . 1000 3774 Parts Sabotaged 5 | . . . . . . . . . . . . . . . . . . . . 5 . . . . . . . . . . . . . . Parts Stolen . | . . . . . . . . . . . . . . . . . . . . . . . . . . . . . . . . . . . Parts Stripped . | . . . . . . . . . . . . . . . . . . . . . . . . . . . . . . . . . . . Power Chain Reactions 4 | . . . . . . . . . . . . . . . . . . . . . 1 . . . . 1 . . . . . . 2 . Alert | -11 -10 -10 -10 -9 -8 -8 -8 -7 -7 -7 -7 -7 -7 -6 -6 -6 -6 -6 -6 -5 -5 -5 -5 -4 -4 -4 -4 -4 -3 -3 -3 -3 -2 -1 ------- Run | Yrd Mat Min Exi Min Mat Gar Mat Fac Gar Fac Low Low Dat Pro Fac Ext Cet Arc Hub Fac Upp Upp Zhi Pro Fac Upp Upp War Pro Res Arm Lab Res Acc Peak Influence 1304 | . 328 142 . 120 215 1086 1234 594 716 507 . . . . 114 341 501 412 875 835 . . . . 668 . . . . 456 1304 . 305 883 Initial 561 | . . 56 . . 7 . 529 561 275 373 . . . . . 55 190 121 144 431 . . . . 50 . . . . 59 180 . . 148 Average 373 | . 151 78 . 54 110 442 944 482 541 380 . . . . 34 116 309 360 564 580 . . . . 358 . . . . 227 761 . 71 423 Maximum Alert Level 4 | . 1 . . . 1 3 4 2 3 2 . . . . . 1 2 2 3 3 . . . . 2 . . . . 2 4 . 1 3 Low Security (%) 39 | 100 77 100 . 100 91 17 . . . 2 . . . . 100 86 6 10 3 . . . . . 29 . . . . 47 7 . 90 22 Level 1 19 | . 22 . . . 8 18 . 34 22 50 . . . . . 13 72 44 6 . . . . . 25 . . . . 44 10 . 9 19 Level 2 26 | . . . . . . 55 14 65 55 46 . . . . . . 21 44 68 88 . . . . 44 . . . . 7 33 . . 54 Level 3 9 | . . . . . . 7 63 . 21 . . . . . . . . . 21 11 . . . . . . . . . . 13 . . 3 Level 4 4 | . . . . . . . 21 . . . . . . . . . . . . . . . . . . . . . . . 35 . . . Level 5 . | . . . . . . . . . . . . . . . . . . . . . . . . . . . . . . . . . . . High Security . | . . . . . . . . . . . . . . . . . . . . . . . . . . . . . . . . . . . Max Security . | . . . . . . . . . . . . . . . . . . . . . . . . . . . . . . . . . . . Squads Dispatched 96 | . 7 . . . 2 . 10 4 . 11 . . . . 3 2 1 . 4 5 . . . . 7 . 1 . 1 8 10 . 8 12 Investigation 20 | . 5 . . . 1 . 3 1 . 1 . . . . . . 1 . . . . . . . . . . . 1 3 2 . 1 1 Extermination 16 | . . . . . . . . . . 4 . . . . 2 . . . . 2 . . . . 3 . . . . . 3 . . 2 Reinforcement 28 | . 2 . . . . . 4 . . 2 . . . . 1 2 . . 4 . . . . . 3 . . . . 5 4 . 1 . Assault 8 | . . . . . . . 2 . . . . . . . . . . . . 3 . . . . . . 1 . . . 1 . . 1 Garrison 15 | . . . . . 1 . 1 3 . 4 . . . . . . . . . . . . . . 1 . . . . . . . . 5 Intercept 9 | . . . . . . . . . . . . . . . . . . . . . . . . . . . . . . . . . 6 3 Searches Triggered . | . . . . . . . . . . . . . . . . . . . . . . . . . . . . . . . . . . . Construction Impeded 5 | . . . . . . . 1 . . 1 . . . . . . . . 1 . . . . . 1 . . . . 1 . . . . Haulers Reinforced 5 | . . . . . . . . . . 1 . . . . 1 . . . . . . . . . . . . . . 3 . . . . Active Scanning Responses . | . . . . . . . . . . . . . . . . . . . . . . . . . . . . . . . . . . . Cargo Convoy Interrupts . | . . . . . . . . . . . . . . . . . . . . . . . . . . . . . . . . . . . Stealth | -11 -10 -10 -10 -9 -8 -8 -8 -7 -7 -7 -7 -7 -7 -6 -6 -6 -6 -6 -6 -5 -5 -5 -5 -4 -4 -4 -4 -4 -3 -3 -3 -3 -2 -1 --------- Run | Yrd Mat Min Exi Min Mat Gar Mat Fac Gar Fac Low Low Dat Pro Fac Ext Cet Arc Hub Fac Upp Upp Zhi Pro Fac Upp Upp War Pro Res Arm Lab Res Acc Distress Signals 38 | . 2 . . . 2 . 2 1 . . . . . . . 1 1 . 5 . . . . . . . . 1 . 10 3 . 9 1 Communications Jammed 21 | . . . . . . . . . . . . . . . . . . . 7 14 . . . . . . . . . . . . . . Distress Signals 21 | . . . . . . . . . . . . . . . . . . . 7 14 . . . . . . . . . . . . . . Times Spotted 640 | . 31 5 . 11 27 14 68 12 18 33 8 12 . 4 10 24 11 7 34 29 7 . . 14 37 9 19 41 11 14 69 1 27 33 Peak Tracking Total 16 | . 5 3 9 5 4 4 8 6 5 8 6 4 . 3 3 5 5 3 6 8 5 . . 5 6 5 11 16 5 3 15 1 7 8 Tactical Retreats 33 | . 2 . . 2 1 1 4 . 1 2 1 . . . 1 2 1 . 2 1 . . . . 2 . 4 . . . 1 . 2 3 Traps | -11 -10 -10 -10 -9 -8 -8 -8 -7 -7 -7 -7 -7 -7 -6 -6 -6 -6 -6 -6 -5 -5 -5 -5 -4 -4 -4 -4 -4 -3 -3 -3 -3 -2 -1 ------- Run | Yrd Mat Min Exi Min Mat Gar Mat Fac Gar Fac Low Low Dat Pro Fac Ext Cet Arc Hub Fac Upp Upp Zhi Pro Fac Upp Upp War Pro Res Arm Lab Res Acc Traps Triggered 21 | . 2 . . . 1 2 . . 2 3 . . . . . 4 . . . 1 . . . . 1 . . 2 . 1 2 . . . Indirectly . | . . . . . . . . . . . . . . . . . . . . . . . . . . . . . . . . . . . Trap Hack Attempts . | . . . . . . . . . . . . . . . . . . . . . . . . . . . . . . . . . . . Triggered . | . . . . . . . . . . . . . . . . . . . . . . . . . . . . . . . . . . . Disarmed . | . . . . . . . . . . . . . . . . . . . . . . . . . . . . . . . . . . . Reprogrammed . | . . . . . . . . . . . . . . . . . . . . . . . . . . . . . . . . . . . Reused . | . . . . . . . . . . . . . . . . . . . . . . . . . . . . . . . . . . . Traps Extracted . | . . . . . . . . . . . . . . . . . . . . . . . . . . . . . . . . . . . Installed . | . . . . . . . . . . . . . . . . . . . . . . . . . . . . . . . . . . . Triggered 14 | . . . . . . . . . . . . . . 1 . 1 . . . . . 1 . . 3 . . 8 . . . . . . Most Traps Carried 3 | . . . . . . . . . . . . . . . . . . . . . . . . . . 3 3 3 . . . . . . Machines | -11 -10 -10 -10 -9 -8 -8 -8 -7 -7 -7 -7 -7 -7 -6 -6 -6 -6 -6 -6 -5 -5 -5 -5 -4 -4 -4 -4 -4 -3 -3 -3 -3 -2 -1 ---------- Run | Yrd Mat Min Exi Min Mat Gar Mat Fac Gar Fac Low Low Dat Pro Fac Ext Cet Arc Hub Fac Upp Upp Zhi Pro Fac Upp Upp War Pro Res Arm Lab Res Acc Machines Disabled 74 | . . . 2 . . 12 7 1 2 1 . . . . 5 1 2 3 9 1 . . . . 8 . 3 . 3 . 13 1 . . Max in Single Turn 6 | . . . 1 . . 2 1 1 1 1 . . . . 3 1 1 1 3 1 . . . . 6 . 1 . 1 . 3 1 . . Garrison Access 6 | . . . . . . . 1 1 . . . . . . . . . . . . . . . . . . . . . 2 . . 1 1 Garrison Relay 7 | . . . . . . 7 . . . . . . . . . . . . . . . . . . . . . . . . . . . . Phase Generator 1 | . . . . . . 1 . . . . . . . . . . . . . . . . . . . . . . . . . . . . Network Hub 2 | . . . . . . . . . . . . . . . . . . . 2 . . . . . . . . . . . . . . . Machines Repaired . | . . . . . . . . . . . . . . . . . . . . . . . . . . . . . . . . . . . Machines Dismantled 1 | . . . . . . . . . . . . . . . . . . . . . . . . . . . . . 1 . . . . . Machines Sabotaged . | . . . . . . . . . . . . . . . . . . . . . . . . . . . . . . . . . . . Overloaded Fab Kills . | . . . . . . . . . . . . . . . . . . . . . . . . . . . . . . . . . . . Hacking | -11 -10 -10 -10 -9 -8 -8 -8 -7 -7 -7 -7 -7 -7 -6 -6 -6 -6 -6 -6 -5 -5 -5 -5 -4 -4 -4 -4 -4 -3 -3 -3 -3 -2 -1 --------- Run | Yrd Mat Min Exi Min Mat Gar Mat Fac Gar Fac Low Low Dat Pro Fac Ext Cet Arc Hub Fac Upp Upp Zhi Pro Fac Upp Upp War Pro Res Arm Lab Res Acc Machines Accessed 94 | . 3 . 2 . 9 3 7 8 . 14 1 . 3 . 3 1 1 . 3 1 1 . 4 . 5 . . 5 3 6 2 1 3 5 Terminals 47 | . 3 . . . 6 3 4 3 . 8 . . . . 2 1 1 . 3 1 1 . . . 2 . . . 1 2 2 . 2 2 Fabricators 10 | . . . . . . . . 3 . 3 . . . . . . . . . . . . . . . . . . 1 2 . . . 1 Repair Stations 5 | . . . . . 1 . 1 . . 1 . . . . 1 . . . . . . . . . 1 . . . . . . . . . Recycling Units 5 | . . . . . 1 . 1 . . . . . . . . . . . . . . . . . 2 . . . 1 . . . . . Scanalyzers . | . . . . . . . . . . . . . . . . . . . . . . . . . . . . . . . . . . . Garrison Access 11 | . . . . . 1 . 1 2 . 2 . . . . . . . . . . . . . . . . . . . 2 . . 1 2 Total Hacks 372 | . 10 . 5 . 30 6 28 16 . 34 1 . 21 . 8 2 4 . 16 2 1 . 17 . 28 . . 11 11 35 20 19 18 29 Successful 192 | . 2 . 5 . 14 4 16 8 . 20 1 . 21 . 4 . . . 5 . 1 . 17 . 13 . . 11 5 13 4 19 1 8 Failed 179 | . 8 . . . 15 2 12 8 . 14 . . . . 4 2 4 . 11 2 . . . . 15 . . . 6 22 16 . 17 21 Catastrophic 26 | . 2 . . . 1 1 1 3 . 1 . . . . . 1 1 . 3 . . . . . 1 . . . 1 1 2 . 3 4 Database Lockouts 1 | . . . . . 1 . . . . . . . . . . . . . . . . . . . . . . . . . . . . . Manual 123 | . 7 . 1 . 19 2 9 7 . 9 . . . . 4 . 1 . 15 2 . . . . 6 . . . . 15 13 . 8 5 Terminals 174 | . 10 . . . 22 6 15 6 . 19 . . . . 6 2 4 . 16 2 1 . . . 12 . . . 1 12 20 . 13 7 Fabricators 48 | . . . . . . . . 6 . 6 . . . . . . . . . . . . . . . . . . 5 16 . . . 15 Repair Stations 20 | . . . . . 2 . 7 . . 4 . . . . 2 . . . . . . . . . 5 . . . . . . . . . Recycling Units 25 | . . . . . 5 . 4 . . . . . . . . . . . . . . . . . 11 . . . 5 . . . . . Scanalyzers . | . . . . . . . . . . . . . . . . . . . . . . . . . . . . . . . . . . . Garrison Access 31 | . . . . . 1 . 2 4 . 5 . . . . . . . . . . . . . . . . . . . 7 . . 5 7 Terminal Hacks 123 | . 1 . 5 . 9 2 6 1 . 8 1 . 21 . 1 . . . 2 . 1 . 17 . 5 . . 11 1 4 4 19 1 3 Record 49 | . . . 4 . . . . . . . . . 6 . . . . . . . 1 . 5 . 1 . . 10 . 1 1 19 1 . Part Schematic 14 | . . . . . . . . . . . . . 10 . . . . . . . . . 4 . . . . . . . . . . . Robot Schematic 2 | . . . . . . . . . . . . . 2 . . . . . . . . . . . . . . . . . . . . . Robot Analysis 8 | . . . . . 4 . . . . . . . . . . . . . . . . . 4 . . . . . . . . . . . Prototype ID Bank 9 | . . . . . 1 . . . . . . . 3 . . . . . . . . . 4 . . . . . . . 1 . . . Open Door 4 | . . . . . . . . . . . 1 . . . . . . . . . . . . . . . . 1 1 . . . . 1 Level Access Points 1 | . . . . . . . . . . . . . . . . . . . . . . . . . . . . . . 1 . . . . Branch Access Points 5 | . . . . . . . . 1 . 1 . . . . 1 . . . . . . . . . 1 . . . . 1 . . . . Emergency Access Points 2 | . . . . . . 1 . . . 1 . . . . . . . . . . . . . . . . . . . . . . . . Machine Index 1 | . . . . . . . . . . . . . . . . . . . . . . . . . . . . . . . 1 . . . Terminal Index 2 | . . . . . . . 1 . . . . . . . . . . . . . . . . . . . . . . . . . . 1 Garrison Index 1 | . . . . . . . . . . 1 . . . . . . . . . . . . . . . . . . . . . . . . Alert Level 6 | . . . . . 1 . 1 . . 1 . . . . . . . . 2 . . . . . . . . . . . . . . 1 Unreport Threat 3 | . . . . . 1 . 2 . . . . . . . . . . . . . . . . . . . . . . . . . . . Locate Traps 2 | . . . . . . . . . . 2 . . . . . . . . . . . . . . . . . . . . . . . . Recall Reinforcements 2 | . . . . . . . . . . . . . . . . . . . . . . . . . 1 . . . . . 1 . . . Hauler Manifests 4 | . . . . . 1 . 1 . . 1 . . . . . . . . . . . . . . 1 . . . . . . . . . Zone Layout 6 | . 1 . . . 1 . 1 . . 1 . . . . . . . . . . . . . . 1 . . . . 1 . . . . Security Stations 1 | . . . . . . 1 . . . . . . . . . . . . . . . . . . . . . . . . . . . . Derelict Proto ID Bank 1 | . . . 1 . . . . . . . . . . . . . . . . . . . . . . . . . . . . . . . Fabricator Hacks 11 | . . . . . . . . 2 . 2 . . . . . . . . . . . . . . . . . . 3 2 . . . 2 Network Status 6 | . . . . . . . . 1 . 2 . . . . . . . . . . . . . . . . . . . 1 . . . 2 Load Schematic 1 | . . . . . . . . . . . . . . . . . . . . . . . . . . . . . 1 . . . . . Build 4 | . . . . . . . . 1 . . . . . . . . . . . . . . . . . . . . 2 1 . . . . Repair Station Hacks 15 | . . . . . 2 . 4 . . 4 . . . . 2 . . . . . . . . . 3 . . . . . . . . . Scan Component 9 | . . . . . 1 . 3 . . 2 . . . . 1 . . . . . . . . . 2 . . . . . . . . . Repair 6 | . . . . . 1 . 1 . . 2 . . . . 1 . . . . . . . . . 1 . . . . . . . . . Recycling Unit Hacks 6 | . . . . . 1 . 2 . . . . . . . . . . . . . . . . . 2 . . . 1 . . . . . Retrieve Matter 2 | . . . . . . . 1 . . . . . . . . . . . . . . . . . 1 . . . . . . . . . Retrieve Components 4 | . . . . . 1 . 1 . . . . . . . . . . . . . . . . . 1 . . . 1 . . . . . Scanalyzer . | . . . . . . . . . . . . . . . . . . . . . . . . . . . . . . . . . . . Garrison Access Hacks 8 | . . . . . 1 . 1 3 . . . . . . . . . . . . . . . . . . . . . 2 . . . 1 Unlock Access 3 | . . . . . 1 . . 2 . . . . . . . . . . . . . . . . . . . . . . . . . . Seal Access 5 | . . . . . . . 1 1 . . . . . . . . . . . . . . . . . . . . . 2 . . . 1 Unauthorized Hacks 29 | . 1 . . . 1 2 3 2 . 6 . . . . 1 . . . 3 . . . . . 3 . . . . 5 . . . 2 Terminals 13 | . 1 . . . . 2 2 . . 2 . . . . 1 . . . 3 . . . . . 1 . . . . 1 . . . . Botnet 11 | . . . . . . 1 2 . . 2 . . . . 1 . . . 3 . . . . . 1 . . . . 1 . . . . Disrupt 1 | . 1 . . . . . . . . . . . . . . . . . . . . . . . . . . . . . . . . . Override 1 | . . . . . . 1 . . . . . . . . . . . . . . . . . . . . . . . . . . . . Fabricators 12 | . . . . . . . . 2 . 4 . . . . . . . . . . . . . . . . . . . 4 . . . 2 Prioritize 1 | . . . . . . . . . . . . . . . . . . . . . . . . . . . . . . 1 . . . . Liberate 6 | . . . . . . . . 1 . 3 . . . . . . . . . . . . . . . . . . . 1 . . . 1 Fabnet 3 | . . . . . . . . 1 . 1 . . . . . . . . . . . . . . . . . . . 1 . . . . Haulers 2 | . . . . . . . . . . . . . . . . . . . . . . . . . . . . . . 1 . . . 1 Repair Stations . | . . . . . . . . . . . . . . . . . . . . . . . . . . . . . . . . . . . Recycling Units 4 | . . . . . 1 . 1 . . . . . . . . . . . . . . . . . 2 . . . . . . . . . Recyclers 2 | . . . . . 1 . . . . . . . . . . . . . . . . . . . 1 . . . . . . . . . Mask 1 | . . . . . . . . . . . . . . . . . . . . . . . . . 1 . . . . . . . . . Tunnel 1 | . . . . . . . 1 . . . . . . . . . . . . . . . . . . . . . . . . . . . Scanalyzers . | . . . . . . . . . . . . . . . . . . . . . . . . . . . . . . . . . . . Garrison Access . | . . . . . . . . . . . . . . . . . . . . . . . . . . . . . . . . . . . Data Cores Recovered 1 | . . . . . . . . . . . . . . . . . . . . . . . . . . . . . . . . . . 1 Used . | . . . . . . . . . . . . . . . . . . . . . . . . . . . . . . . . . . . Hacking Detections 66 | . 3 . . . 8 2 7 8 . 11 . . . . 2 1 1 . 3 1 . . . . 4 . . . 2 5 2 . 3 3 Full Trace Events 15 | . 3 . . . 1 1 3 1 . 1 . . . . . . 1 . . . . . . . . . . . 1 1 . . 1 1 Feedback Events . | . . . . . . . . . . . . . . . . . . . . . . . . . . . . . . . . . . . Feedback Blocked 1 | . . . . . . . . . . . . . . . . . . . . . . . . . . . . . . . . . . 1 Robot Schematics Acquired 2 | . . . . . . . . . . . . . 2 . . . . . . . . . . . . . . . . . . . . . Robots Built . | . . . . . . . . . . . . . . . . . . . . . . . . . . . . . . . . . . . Authchips . | . . . . . . . . . . . . . . . . . . . . . . . . . . . . . . . . . . . Time . | . . . . . . . . . . . . . . . . . . . . . . . . . . . . . . . . . . . Total Robot Build Rating . | . . . . . . . . . . . . . . . . . . . . . . . . . . . . . . . . . . . Part Schematics Acquired 14 | . . . . . . . . . . . . . 10 . . . . . . . . . 4 . . . . . . . . . . . Parts Built 7 | . . . . . . . . 2 . . . . . . . . . . . . . . . . . . . . 4 1 . . . . Authchips . | . . . . . . . . . . . . . . . . . . . . . . . . . . . . . . . . . . . Time 237 | . . . . . . . . 47 . . . . . . . . . . . . . . . . . . . . 122 68 . . . . Total Part Build Rating 48 | . . . . . . . . 10 . . . . . . . . . . . . . . . . . . . . 30 8 . . . . Parts Repaired 6 | . . . . . 1 . 1 . . 2 . . . . 1 . . . . . . . . . 1 . . . . . . . . . Time 314 | . . . . . 26 . 60 . . 110 . . . . 56 . . . . . . . . . 62 . . . . . . . . . Parts Recycled . | . . . . . . . . . . . . . . . . . . . . . . . . . . . . . . . . . . . Recycled Matter . | . . . . . . . . . . . . . . . . . . . . . . . . . . . . . . . . . . . Retrieved Matter 164 | . . . . . . . 164 . . . . . . . . . . . . . . . . . . . . . . . . . . . Retrieved Components 30 | . . . . . 9 . 9 . . . . . . . . . . . . . . . . . 2 . . . 10 . . . . . Parts Scanalyzed . | . . . . . . . . . . . . . . . . . . . . . . . . . . . . . . . . . . . Part Schematics Acquired . | . . . . . . . . . . . . . . . . . . . . . . . . . . . . . . . . . . . Parts Damaged . | . . . . . . . . . . . . . . . . . . . . . . . . . . . . . . . . . . . Bothacking | -11 -10 -10 -10 -9 -8 -8 -8 -7 -7 -7 -7 -7 -7 -6 -6 -6 -6 -6 -6 -5 -5 -5 -5 -4 -4 -4 -4 -4 -3 -3 -3 -3 -2 -1 ------------ Run | Yrd Mat Min Exi Min Mat Gar Mat Fac Gar Fac Low Low Dat Pro Fac Ext Cet Arc Hub Fac Upp Upp Zhi Pro Fac Upp Upp War Pro Res Arm Lab Res Acc Used RIF Installer . | . . . . . . . . . . . . . . . . . . . . . . . . . . . . . . . . . . . Robots Hacked 17 | . . . 4 . . . . . . . . . 1 . 1 2 1 . 2 1 1 . . . . . . . . . . . 3 1 Non-combat 3 | . . . 3 . . . . . . . . . . . . . . . . . . . . . . . . . . . . . . . Combat 14 | . . . 1 . . . . . . . . . 1 . 1 2 1 . 2 1 1 . . . . . . . . . . . 3 1 Robot Hacks Applied 5 | . . . 4 . . . . . . . . . 1 . . . . . . . . . . . . . . . . . . . . . parse_system 5 | . . . 4 . . . . . . . . . 1 . . . . . . . . . . . . . . . . . . . . . Relay Couplers Released 28 | . . . . . . 26 . . . . . . . . . . . . . . . . . . . . . . . . . . 2 . Machine Destruction 28 | . . . . . . 26 . . . . . . . . . . . . . . . . . . . . . . . . . . 2 . Fabnet Peak Effective % 6 | . . . . . . . . . . . . . . 6 6 6 6 6 6 2 2 2 2 . . . . . . . . . 3 1 Autooverrided 12 | . . . . . . . . . . . . . . . 1 2 1 . 2 1 1 . . . . . . . . . . . 3 1 Robots Rewired 30 | . . . . . . . . . . . . . . . . 8 . . . . . . . . . . 5 5 10 . 2 . . . Allies Hacked . | . . . . . . . . . . . . . . . . . . . . . . . . . . . . . . . . . . . Hacks Repelled . | . . . . . . . . . . . . . . . . . . . . . . . . . . . . . . . . . . . Allies | -11 -10 -10 -10 -9 -8 -8 -8 -7 -7 -7 -7 -7 -7 -6 -6 -6 -6 -6 -6 -5 -5 -5 -5 -4 -4 -4 -4 -4 -3 -3 -3 -3 -2 -1 -------- Run | Yrd Mat Min Exi Min Mat Gar Mat Fac Gar Fac Low Low Dat Pro Fac Ext Cet Arc Hub Fac Upp Upp Zhi Pro Fac Upp Upp War Pro Res Arm Lab Res Acc Total Allies 64 | . . 5 . . . . . . . 3 . . . . 1 16 6 . 2 1 1 . . . . . 5 5 10 3 2 . 3 1 Largest Group 13 | . . 5 5 3 . . . . . 3 . . . . 1 13 10 6 5 1 1 . . . . . 3 5 10 8 1 . 1 . Highest-Rated Group 686 | . . 83 83 40 . . . . . 48 . . . . 29 513 686 462 361 29 49 . . . . . 96 284 424 352 56 . 58 . Highest-Rated Ally 159 | . . 31 31 16 . . . . . 16 . . . . 29 159 159 96 96 29 49 . . . . . 49 65 68 68 56 . 58 . Warlord Squad Rendezvous 1 | . . . . . . . . . . . . . . . . . . . 1 . . . . . . . . . . . . . . . Muscle 1 | . . . . . . . . . . . . . . . . . . . 1 . . . . . . . . . . . . . . . Total Orders 21 | . . . 1 . . . . . . . . . . . . . 9 . . . . . . . . . . 6 5 . . . . . STAY 14 | . . . 1 . . . . . . . . . . . . . 6 . . . . . . . . . . 5 2 . . . . . ROAM 1 | . . . . . . . . . . . . . . . . . . . . . . . . . . . . . 1 . . . . . FOLLOW 6 | . . . . . . . . . . . . . . . . . 3 . . . . . . . . . . 1 2 . . . . . Ally Attacks 353 | . . 8 . 27 . . . . . 18 . . . . 5 47 80 31 16 1 . . . . . . 14 29 21 42 2 . 11 1 Total Damage 10843 | . . 83 . 191 . . . . . 225 . . . . 77 1338 2365 886 622 19 . . . . . . 505 1282 660 2065 167 . 313 45 Kills 65 | . . 2 . 2 . . . . . 2 . . . . . 9 10 4 4 . . . . . . . 5 7 3 14 1 . 1 1 Allies Corrupted 5 | . . . . . . . . . . . . . . . . . . . 2 . . . . . . . . . 1 . 2 . . . Allies Melted 2 | . . . . . . . . . . . . . . . . . . . . . . . . . . . 1 1 . . . . . . Intel | -11 -10 -10 -10 -9 -8 -8 -8 -7 -7 -7 -7 -7 -7 -6 -6 -6 -6 -6 -6 -5 -5 -5 -5 -4 -4 -4 -4 -4 -3 -3 -3 -3 -2 -1 ------- Run | Yrd Mat Min Exi Min Mat Gar Mat Fac Gar Fac Low Low Dat Pro Fac Ext Cet Arc Hub Fac Upp Upp Zhi Pro Fac Upp Upp War Pro Res Arm Lab Res Acc Robot Analysis Total 8 | . . . . . 4 . . . . . . . . . . . . . . . . . 4 . . . . . . . . . . . Derelict Logs Recovered 15 | . . 3 . 2 . . . . . . 1 1 . 2 . . . . . . 1 1 . 2 . 1 1 . . . . . . . Drone Launches . | . . . . . . . . . . . . . . . . . . . . . . . . . . . . . . . . . . . Drone Recoveries . | . . . . . . . . . . . . . . . . . . . . . . . . . . . . . . . . . . . Exploration | -11 -10 -10 -10 -9 -8 -8 -8 -7 -7 -7 -7 -7 -7 -6 -6 -6 -6 -6 -6 -5 -5 -5 -5 -4 -4 -4 -4 -4 -3 -3 -3 -3 -2 -1 ------------- Run | Yrd Mat Min Exi Min Mat Gar Mat Fac Gar Fac Low Low Dat Pro Fac Ext Cet Arc Hub Fac Upp Upp Zhi Pro Fac Upp Upp War Pro Res Arm Lab Res Acc Turns Passed 36454 | 41 932 875 790 523 1615 1302 2691 899 678 3091 1538 1374 223 1289 1057 1998 562 375 652 868 620 337 307 654 1295 800 1212 1651 1488 1160 1097 281 1465 714 Spaces Moved 15183 | 56 426 515 478 258 579 450 819 306 216 1091 590 553 88 478 397 614 211 91 244 311 320 207 166 362 537 374 463 690 651 627 457 244 998 316 Core 669 | 56 9 . . . . . . . . . . . . . . . . . . . . . . . . . 1 . . . 173 244 186 . Treads 12019 | . 240 515 478 258 579 450 819 306 216 1091 590 553 88 478 397 614 211 91 244 223 . . . . . . 198 690 651 627 284 . 812 316 Legs 1687 | . 177 . . . . . . . . . . . . . . . . . . 6 . . 76 253 537 374 264 . . . . . . . Wheels 808 | . . . . . . . . . . . . . . . . . . . . 82 320 207 90 109 . . . . . . . . . . Hover . | . . . . . . . . . . . . . . . . . . . . . . . . . . . . . . . . . . . Flight . | . . . . . . . . . . . . . . . . . . . . . . . . . . . . . . . . . . . Fastest Speed 50 | 50 50 160 160 160 160 240 240 240 240 247 245 242 242 242 239 236 158 158 158 138 138 138 120 120 120 190 162 162 162 163 50 50 50 148 Average Speed 192 | 50 141 160 160 160 212 240 240 240 245 247 246 242 242 243 239 238 180 158 158 190 156 138 150 147 182 190 206 201 162 163 144 68 128 150 Slowest Speed 1950 | 50 160 160 160 160 240 240 320 240 247 250 247 245 242 245 241 239 236 158 163 680 165 138 260 190 190 190 1950 243 164 163 330 250 148 155 Overloaded Moves . | . . . . . . . . . . . . . . . . . . . . . . . . . . . . . . . . . . . Propulsion Burnouts . | . . . . . . . . . . . . . . . . . . . . . . . . . . . . . . . . . . . Robots Hopped . | . . . . . . . . . . . . . . . . . . . . . . . . . . . . . . . . . . . Cave-ins Triggered . | . . . . . . . . . . . . . . . . . . . . . . . . . . . . . . . . . . . Teleports 1 | . . . . . . . . . . . . . . . . . . . . . . . . . 1 . . . . . . . . . Exploration Rate (%) 52 | 3 72 89 72 68 61 62 64 12 37 38 73 67 78 72 14 65 72 79 39 13 61 27 60 75 19 65 53 76 38 28 47 96 34 13 Regions Visited 34 Branch Regions 21 Pre-discovered Areas 12 | . . 1 1 1 . . 1 . . . 2 . 1 . . . . . . . . . 3 1 . . 1 . . . . . . . Known Exits Taken 11 | . . . . . 1 . . 1 . 1 . . . . 1 . . . 1 1 1 . . . 1 1 . . . 1 . 1 . . Unknown Exits Taken 21 | 1 1 1 1 1 . . 1 . . . 1 1 1 1 . 1 1 1 . . . 1 1 1 . . 1 1 1 . 1 . 1 . Scrap Searched 12 | . . 1 . . . . . . . . 1 1 . . . . . . . . 2 . . 1 . 4 2 . . . . . . . Spaces Dug 255 | . . . . . 4 6 10 8 25 2 16 43 . 8 8 7 . . 8 4 5 3 . 1 13 1 10 29 9 12 9 . 2 12 Terrain Destroyed 1863 | . . . . . 4 194 10 8 51 25 34 89 . 42 43 38 11 14 234 126 37 13 . 111 122 75 112 77 34 21 222 . 37 79 Melee 35 | . . . . . 4 2 10 8 . . . . . . . . . . . . . . . . 5 . . 5 . . 1 . . . Projectile 574 | . . . . . . . . . 2 25 3 8 . 42 18 38 11 14 51 30 19 13 . 14 48 17 33 35 31 21 71 . 6 24 AOE 1254 | . . . . . . 192 . . 49 . 31 81 . . 25 . . . 183 96 18 . . 97 69 58 79 37 3 . 150 . 31 55 Terrain Rammed . | . . . . . . . . . . . . . . . . . . . . . . . . . . . . . . . . . . . Walls Destroyed . | . . . . . . . . . . . . . . . . . . . . . . . . . . . . . . . . . . . Machines Disabled . | . . . . . . . . . . . . . . . . . . . . . . . . . . . . . . . . . . . Actions | -11 -10 -10 -10 -9 -8 -8 -8 -7 -7 -7 -7 -7 -7 -6 -6 -6 -6 -6 -6 -5 -5 -5 -5 -4 -4 -4 -4 -4 -3 -3 -3 -3 -2 -1 --------- Run | Yrd Mat Min Exi Min Mat Gar Mat Fac Gar Fac Low Low Dat Pro Fac Ext Cet Arc Hub Fac Upp Upp Zhi Pro Fac Upp Upp War Pro Res Arm Lab Res Acc Total 19895 | 67 624 541 498 327 831 609 1292 417 303 1358 640 569 100 534 462 1072 355 277 367 467 390 232 212 437 726 417 618 874 932 716 707 351 1138 435 Wait 1948 | . 94 7 10 44 95 89 252 66 25 160 8 1 . 1 25 254 80 152 28 48 . . . 25 49 1 29 41 135 17 43 84 36 49 Move 15151 | 55 425 514 477 257 579 449 818 306 215 1090 589 552 87 477 396 613 210 90 244 310 319 206 165 361 536 373 462 689 650 626 456 243 997 315 Hop . | . . . . . . . . . . . . . . . . . . . . . . . . . . . . . . . . . . . Pick Up 220 | 5 8 3 . 2 27 2 17 5 5 20 4 2 3 . 8 5 11 1 6 9 10 . 5 2 14 6 9 10 2 4 8 2 3 2 Fast Attach 191 | 5 5 1 . . 8 . 4 . . 2 2 . 1 . . 4 3 6 2 13 3 . 8 4 10 1 10 15 4 8 26 5 36 5 Attach 141 | . 2 1 . . 8 1 5 4 11 6 1 2 3 1 4 2 . . 5 8 9 . 6 5 17 3 8 4 . 2 17 2 4 . Detach 56 | 1 2 . . . 5 . . . . 2 . 1 . . 1 . . . 1 4 1 . 5 3 6 1 1 7 . 3 7 3 2 . Swap 227 | . 7 . 3 . 14 13 22 5 4 13 4 1 1 1 2 4 12 2 10 14 4 . 3 3 4 6 2 18 16 11 18 . 7 3 Drop 254 | 1 8 2 1 . 20 2 23 5 3 7 4 1 4 . 2 11 15 5 3 6 5 . 10 3 6 3 4 21 12 14 19 4 28 2 Fire 1405 | . 73 13 3 20 70 40 132 18 38 57 28 9 . 54 24 48 24 21 68 54 39 26 5 31 76 23 55 50 86 31 101 8 25 55 Melee 84 | . . . 4 . 5 9 13 8 . . . . 1 . . . . . . . . . 5 . 5 . . 19 11 . 4 . . . Ram 1 | . . . . . . . . . . . . . . . . . . . . . . . . . . . . . . . 1 . . . Kick 1 | . . . . . . . . . . . . . . . . . . . . . . . . . . . 1 . . . . . . . Crush 16 | . . . . 4 . . 6 . . 1 . . . . . . . . . 1 . . . . . . . . . . . . . 4 Escape Stasis 17 | . . . . . . 4 . . 2 . . . . . . 8 . . . . . . . . 3 . . . . . . . . . Rewire 174 | . . . . . . . . . . . . . . . . 123 . . . . . . . . . . 37 . 7 . 7 . . . Trap . | . . . . . . . . . . . . . . . . . . . . . . . . . . . . . . . . . . . Miscellaneous 9 | . . . . . . . . . . . . . . . . . . . . . . . . . . . . . 9 . . . . . Route ------- -11/Scrapyard -10/Materials (discovered 2 exits: [*Mat] / [*Min]) -10/Mines (discovered 3 exits: [*Mat x2] / *Exi) -10/Exiles -9/Mines (discovered 2 exits: *Mat x2) -8/Materials (discovered 3 exits: *Fac x2 / Gar) -8/Garrison (discovered 3 exits: *Mat x3) -8/Materials (discovered 3 exits: *Fac x3) -7/Factory (discovered 5 exits: Sto x2 / Low x2 / Gar) -7/Garrison -7/Factory (discovered 4 exits: *Fac / Sto / *Low x2) -7/Lower Caves -7/Lower Caves (discovered 2 exits: *Fac / *Dat) -7/Data Miner -6/Proximity Caves -6/Factory (discovered 5 exits: Fac / Low x2 / *Ext x2) -6/Extension (discovered 2 exits: *Fac / *Cet) -6/Cetus (discovered 2 exits: *Fac / [*Arc]) -6/Archives (discovered 2 exits: *Hub x2) -6/Hub_04(d) -5/Factory -5/Upper Caves -5/Upper Caves -5/Zhirov -4/Proximity Caves -4/Factory (discovered 3 exits: *Res / *Upp x2) -4/Upper Caves -4/Upper Caves (discovered 2 exits: *Res / *War) -4/Warlord -3/Proximity Caves -3/Research (discovered 6 exits: Res x3 / *Arm / *Qua x2) -3/Armory -3/Lab -2/Research (discovered 2 exits: *Acc / [*Tes]) -1/Access To Fleet Rendezvous History --------- Turn | Location | Event 7 | -11/Scrapyard | Discovered new exit (range 16) 42 | -11/Scrapyard | Entered Materials 318 | -10/Materials | Build established: Mutant 456 | -10/Materials | Discovered new exit (range 16) 769 | -10/Materials | Core integrity fell below 50% 891 | -10/Materials | Discovered new exit (range 15) 974 | -10/Materials | Entered Mines 1008 | -10/Mines | Learned location of Storage (-7) 1049 | -10/Mines | Discovered new exit (range 12) 1087 | -10/Mines | Learned Materials garrison access intel 1131 | -10/Mines | Assisted by bots powering up and referring to "LRC-V3" 1284 | -10/Mines | Deemed a non-threat by the Exiles lab entrance 1284 | -10/Mines | Discovered new exit (range 5) 1488 | -10/Mines | Learned 2 Materials zone layouts 1595 | -10/Mines | Discovered new exit (range 13) 1849 | -10/Mines | Entered Exiles 1849 | -10/Exiles | Accompanied by 5 allies 1879 | -10/Exiles | Led the pair of lost Derelicts to a safe place 1889 | -10/Exiles | Met 8R-AWN 1915 | -10/Exiles | Met EX-HEX 1985 | -10/Exiles | Learned location of Zion (-6) 1989 | -10/Exiles | Met EX-DEC 2198 | -10/Exiles | Met EX-BIN 2227 | -10/Exiles | Aligned with FarCom system 2228 | -10/Exiles | Given EX-Vault access code 2265 | -10/Exiles | Opened EX-Vault 2307 | -10/Exiles | Warned to stay clear of 0b10 Research branches 2406 | -10/Exiles | Discovered new exit (range 10) 2608 | -10/Exiles | Attacked by the Exiles 2639 | -10/Exiles | Entered Mines 2639 | -9/Mines | Accompanied by 3 allies 2695 | -9/Mines | Learned Materials emergency access door positions 2994 | -9/Mines | Discovered new exit (range 9) 3138 | -9/Mines | Discovered new exit (range 10) 3162 | -9/Mines | Entered Materials 3162 | -8/Materials | Evolved 4 slots: Propulsion x1, Utility x2, Weapon x1 3165 | -8/Materials | Loaded intel: 1 garrison access location 3923 | -8/Materials | Build established: Scavenger-Skirmisher 4037 | -8/Materials | Repaired Lgt. Treads 4210 | -8/Materials | Discovered new exit (range 20) 4363 | -8/Materials | Central database locked down 4499 | -8/Materials | Discovered new exit (range 3) 4696 | -8/Materials | Garrison activated, responded to threat 4777 | -8/Materials | Identified exit to Garrison 4777 | -8/Materials | Entered Garrison 4862 | -8/Garrison | Learned Materials security intel 4862 | -8/Garrison | Identified exit to Materials 5011 | -8/Garrison | Phase Generator disabled 5206 | -8/Garrison | Triggered checkpoint 5256 | -8/Garrison | Garrison Relay disabled 5393 | -8/Garrison | Triggered checkpoint 5444 | -8/Garrison | Garrison Relay disabled 5670 | -8/Garrison | Triggered checkpoint 5783 | -8/Garrison | Triggered checkpoint 5942 | -8/Garrison | Garrison Relay disabled 6030 | -8/Garrison | Garrison Relay disabled 6031 | -8/Garrison | Garrison Relay disabled 6038 | -8/Garrison | Garrison Relay disabled 6039 | -8/Garrison | Garrison Relay disabled 6079 | -8/Garrison | Entered Materials 6092 | -8/Materials | Build established: Skirmisher 6778 | -8/Materials | Repaired Enh. Autogun 6879 | -8/Materials | First assault squad dispatched 7104 | -8/Materials | Build established: Scavenger-Tank 7152 | -8/Materials | Discovered new exit (range 3) 7390 | -8/Materials | Lost 3 parts (1n1u1w) 7646 | -8/Materials | Core integrity fell below 50% 7975 | -8/Materials | Build established: Scavenger-Skirmisher 8213 | -8/Materials | Discovered new exit (range 19) 8478 | -8/Materials | Discovered new exit (range 3) 8630 | -8/Materials | Garrison activated, responded to threat 8770 | -8/Materials | Entered Factory 8770 | -7/Factory | Evolved 2 slots: Propulsion x1, Utility x1 8972 | -7/Factory | Fabricated Magnetic Acceleration Cannon? 8974 | -7/Factory | Identified exit to Garrison 9213 | -7/Factory | Build established: Scavenger-Mutant 9377 | -7/Factory | Identified exit to Storage 9377 | -7/Factory | Identified exit to Lower Caves 9669 | -7/Factory | Identified exit to Garrison 9669 | -7/Factory | Entered Garrison 9796 | -7/Garrison | Triggered checkpoint 9833 | -7/Garrison | Triggered checkpoint 9881 | -7/Garrison | Destroyed 9 combat bots 9888 | -7/Garrison | Triggered checkpoint 9955 | -7/Garrison | Lost 10 parts (1p5n1u3w) 10115 | -7/Garrison | Triggered checkpoint 10158 | -7/Garrison | Build established: Gunner 10247 | -7/Garrison | Discovered new exit (range 8) 10347 | -7/Garrison | Entered Factory 11273 | -7/Factory | Garrison activated, responded to threat 11315 | -7/Factory | Destroyed 7 combat bots 12823 | -7/Factory | Repaired Magnetic Acceleration Cannon? 12919 | -7/Factory | Repaired Enh. Autogun 13056 | -7/Factory | Discovered new exit (range 9) 13058 | -7/Factory | Garrison activated, responded to threat 13302 | -7/Factory | Found Prototype Launcher 13302 | -7/Factory | Identified Rocket Array 13438 | -7/Factory | Entered Lower Caves 13602 | -7/Lower Caves | Attracted the attention of an 0b10 checkpoint 13626 | -7/Lower Caves | Met a Warlord Commander 13627 | -7/Lower Caves | Learned location of Warlord (-4) 13628 | -7/Lower Caves | Warlord Commander delivered Encrypted Comm Array 13632 | -7/Lower Caves | Found Encrypted Comm Array 14636 | -7/Lower Caves | Discovered new exit (range 6) 14854 | -7/Lower Caves | Spotted B-75 Beast 14976 | -7/Lower Caves | Entered another Lower Caves area 15015 | -7/Lower Caves | Discovered new exit (range 5) 15050 | -7/Lower Caves | Learned location of 1 exit from Factory 15231 | -7/Lower Caves | Spotted B-75 Beast 15879 | -7/Lower Caves | Build established: Scavenger-Mutant 16174 | -7/Lower Caves | Core integrity fell below 50% 16258 | -7/Lower Caves | Discovered new exit (range 9) 16350 | -7/Lower Caves | Entered Data Miner 16352 | -7/Data Miner | Discovered new exit (range 6) 16393 | -7/Data Miner | Met Data Miner 16485 | -7/Data Miner | Learned location of Section 7 (-2) 16485 | -7/Data Miner | Acquired the access code to Warlord's prototype stash 16507 | -7/Data Miner | Received God Mode back door access code from Data Miner 16573 | -7/Data Miner | Entered Proximity Caves 16715 | -6/Proximity Caves | Learned Factory emergency access door positions 16921 | -6/Proximity Caves | Build established: Scavenger-Gunner 17209 | -6/Proximity Caves | Spotted B-75 Beast 17285 | -6/Proximity Caves | Received a Behemoth hack from an annoying Tinkerer 17358 | -6/Proximity Caves | Build established: Gunner 17754 | -6/Proximity Caves | Discovered new exit (range 12) 17862 | -6/Proximity Caves | Entered Factory 17862 | -6/Factory | Evolved 2 slots: Propulsion x1, Utility x1 17863 | -6/Factory | Identified exit to Factory 18534 | -6/Factory | Repaired Tesla Rifle? 18749 | -6/Factory | Identified exit to Lower Caves 18749 | -6/Factory | Identified exit to Extension 18919 | -6/Factory | Entered Extension 19008 | -6/Extension | Rescued a captive Derelict 19190 | -6/Extension | Rescued a captive Derelict 19410 | -6/Extension | Rescued A7 19668 | -6/Extension | Build established: Tank 20289 | -6/Extension | Rescued a captive Derelict 20289 | -6/Extension | Rescued a captive Derelict 20571 | -6/Extension | Build established: Commander-Tank 20584 | -6/Extension | Rescued a captive Derelict 20762 | -6/Extension | Lost 3 allies 20880 | -6/Extension | Discovered exit to Factory (range 10) 20883 | -6/Extension | Discovered new exit (range 6) 20917 | -6/Extension | Entered Cetus 20917 | -6/Cetus | Accompanied by 10 allies (A7) 20922 | -6/Cetus | Acquired a Cetus Manufacturing Module code from A7 20957 | -6/Cetus | Spotted Cetus Guard 20957 | -6/Cetus | Spotted Cetus Guard 20957 | -6/Cetus | Spotted Cetus Guard 20957 | -6/Cetus | Spotted Cetus Guard 20969 | -6/Cetus | Allies destroyed Cetus Guard 20979 | -6/Cetus | Allies destroyed Cetus Guard 20989 | -6/Cetus | Allies destroyed Cetus Guard 21015 | -6/Cetus | Lost 4 allies 21086 | -6/Cetus | System corruption reached 10% 21133 | -6/Cetus | Started Cetus Manufacturing Module 21149 | -6/Cetus | Escorted A7 to Cetus Mainframe 21158 | -6/Cetus | Manufactured an Enhanced Grunt 21183 | -6/Cetus | Manufactured an Enhanced Grunt 21193 | -6/Cetus | Discovered new exit (range 19) 21208 | -6/Cetus | Manufactured an Enhanced Grunt 21233 | -6/Cetus | Manufactured an Enhanced Grunt 21234 | -6/Cetus | Spotted Cetus Guard 21234 | -6/Cetus | Spotted Cetus Guard 21240 | -6/Cetus | Spotted Cetus Guard 21240 | -6/Cetus | Spotted Cetus Guard 21246 | -6/Cetus | Allies destroyed Cetus Guard 21246 | -6/Cetus | Discovered exit to Factory (range 19) 21254 | -6/Cetus | Allies destroyed Cetus Guard 21258 | -6/Cetus | Manufactured an Enhanced Grunt 21259 | -6/Cetus | Allies destroyed Cetus Guard 21264 | -6/Cetus | Allies destroyed Cetus Guard 21273 | -6/Cetus | Met Revision 17 21288 | -6/Cetus | Lost 4 allies 21305 | -6/Cetus | Found Prototype Device 21305 | -6/Cetus | Identified Exp. Thermal Shield 21378 | -6/Cetus | Murdered A7 21378 | -6/Cetus | Destroyed A7 21387 | -6/Cetus | Extracted ID and sensor layout for unrecognized location from A7's data core 21479 | -6/Cetus | Entered Archives 21479 | -6/Archives | Accompanied by 6 allies 21567 | -6/Archives | Discovered new exit (range 20) 21697 | -6/Archives | Discovered new exit (range 19) 21854 | -6/Archives | Entered Hub_04(d) 21854 | -6/Hub_04(d) | Accompanied by 5 allies 21878 | -6/Hub_04(d) | Network Hub disabled 21923 | -6/Hub_04(d) | Lost 4 allies 22173 | -6/Hub_04(d) | Joined by Warlord Muscle squad 22208 | -6/Hub_04(d) | Local machine network offline 22216 | -6/Hub_04(d) | Network Hub disabled 22251 | -6/Hub_04(d) | Build established: Scavenger-Tank 22303 | -6/Hub_04(d) | Spotted Lightning 22304 | -6/Hub_04(d) | Spotted Lightning 22306 | -6/Hub_04(d) | Spotted Lightning 22342 | -6/Hub_04(d) | Destroyed Lightning 22348 | -6/Hub_04(d) | Lost 3 parts (1p2n) 22360 | -6/Hub_04(d) | Destroyed Lightning 22367 | -6/Hub_04(d) | Destroyed Lightning 22382 | -6/Hub_04(d) | Found Prototype Energy Cannon 22384 | -6/Hub_04(d) | Spotted Lightning 22384 | -6/Hub_04(d) | Spotted Lightning 22387 | -6/Hub_04(d) | Spotted Lightning 22406 | -6/Hub_04(d) | Destroyed Lightning 22409 | -6/Hub_04(d) | Destroyed Lightning 22449 | -6/Hub_04(d) | Discovered exit to Factory (range 10) 22454 | -6/Hub_04(d) | Destroyed Lightning 22463 | -6/Hub_04(d) | Found Exp. Targeting Computer 22468 | -6/Hub_04(d) | Found Prototype Device 22506 | -6/Hub_04(d) | Entered Factory 22506 | -5/Factory | Evolved 2 slots: Propulsion x1, Utility x1 22507 | -5/Factory | Identified exit to Upper Caves 22677 | -5/Factory | Identified Exp. Phase Shifter 22806 | -5/Factory | First assault squad dispatched 22894 | -5/Factory | Destroyed 8 combat bots 22900 | -5/Factory | Lost 3 parts (2n1u) 23081 | -5/Factory | Lost 3 parts (2n1u) 23336 | -5/Factory | Destroyed 8 combat bots 23342 | -5/Factory | Lost 5 parts (1p2n1u1w) 23374 | -5/Factory | Entered Upper Caves 23768 | -5/Upper Caves | Identified EMDS 23806 | -5/Upper Caves | Identified exit to Upper Caves 23937 | -5/Upper Caves | Spotted B-75 Beast 23994 | -5/Upper Caves | Entered another Upper Caves area 24014 | -5/Upper Caves | Learned Factory security intel 24081 | -5/Upper Caves | Encountered a Warlord checkpoint 24307 | -5/Upper Caves | Discovered new exit (range 7) 24331 | -5/Upper Caves | Entered Zhirov 24331 | -5/Zhirov | Discovered new exit (range 3) 24355 | -5/Zhirov | Met Zhirov 24377 | -5/Zhirov | Learned location of Quarantine (-3) 24377 | -5/Zhirov | Learned location of Testing (-2) 24377 | -5/Zhirov | Learned location of Command (-1) 24388 | -5/Zhirov | Zhirov requested help retrieving the SGEMP Prototype 24407 | -5/Zhirov | Found Alien Artifact 24407 | -5/Zhirov | Identified Integrated Dissipator 24407 | -5/Zhirov | Installed Integrated Dissipator, increased core heat dissipation (+20) 24426 | -5/Zhirov | Found Alien Artifact 24638 | -5/Zhirov | Entered Proximity Caves 24879 | -4/Proximity Caves | Lost 6 parts (1p2n2u1w) 24984 | -4/Proximity Caves | Learned location of 1 exit from Research 25205 | -4/Proximity Caves | Spotted B-86 Titan 25268 | -4/Proximity Caves | Discovered new exit (range 8) 25292 | -4/Proximity Caves | Entered Factory 25292 | -4/Factory | Evolved 2 slots: Propulsion x1, Utility x1 25397 | -4/Factory | Found Prototype Launcher 25397 | -4/Factory | Identified Adv. Micro-nuke Launcher 25413 | -4/Factory | Spotted B-86 Titan 25476 | -4/Factory | Lost 5 parts (1n2u2w) 25568 | -4/Factory | Identified Transdimensional Reconstructor 25568 | -4/Factory | Warped through subspace 25710 | -4/Factory | Destroyed 7 combat bots 25715 | -4/Factory | Identified exit to Upper Caves 25753 | -4/Factory | Garrison activated, responded to threat 26125 | -4/Factory | Discovered new exit (range 11) 26264 | -4/Factory | Repaired Broken Adv. KE Penetrator 26463 | -4/Factory | Build established: Scavenger-Gunner 26587 | -4/Factory | Entered Upper Caves 26621 | -4/Upper Caves | Destroyed 7 combat bots 26699 | -4/Upper Caves | Identified exit to Upper Caves 27039 | -4/Upper Caves | Attracted the attention of an 0b10 checkpoint 27387 | -4/Upper Caves | Entered another Upper Caves area 27429 | -4/Upper Caves | Discovered new exit (range 8) 27814 | -4/Upper Caves | Attacked by a delusional Derelict stockpiling Unaware 27840 | -4/Upper Caves | System corruption reached 10% 28019 | -4/Upper Caves | Attracted the attention of an 0b10 outpost 28043 | -4/Upper Caves | Lost 3 allies 28077 | -4/Upper Caves | Core integrity fell below 50% 28109 | -4/Upper Caves | Destroyed 9 combat bots 28109 | -4/Upper Caves | Lost 12 parts (6n3u3w) 28429 | -4/Upper Caves | Attracted the attention of an 0b10 checkpoint 28470 | -4/Upper Caves | Lost 3 parts (1n2w) 28565 | -4/Upper Caves | Discovered new exit (range 8) 28580 | -4/Upper Caves | Learned location of Armory (-3) 28599 | -4/Upper Caves | Entered Warlord 28655 | -4/Warlord | System corruption cleaned by Quarantine Array 28751 | -4/Warlord | System corruption cleaned by Quarantine Array 29016 | -4/Warlord | Build established: Scavenger-Mutant 29123 | -4/Warlord | Found Prototype Special Weapon 29123 | -4/Warlord | Identified RU-N14's Throwing Claymores v3 29128 | -4/Warlord | Found RU-N14's Throwing Claymores v3 29131 | -4/Warlord | Found RU-N14's Throwing Claymores v3 29133 | -4/Warlord | Found RU-N14's Throwing Claymores v3 29306 | -4/Warlord | Learned Testing trap positions 29309 | -4/Warlord | Learned 4 Access zone layouts 29311 | -4/Warlord | Learned Factory recycling unit intel 29311 | -4/Warlord | Learned Armory repair station intel 29311 | -4/Warlord | Learned Research fabricator intel 29311 | -4/Warlord | Learned Research garrison access intel 29439 | -4/Warlord | Found Signal Generator 29565 | -4/Warlord | Met Warlord 29590 | -4/Warlord | Warlord's base attacked by MAIN.C 29728 | -4/Warlord | Found Prototype Energy Gun 29728 | -4/Warlord | Identified Vortex Shotgun 29740 | -4/Warlord | Found Prototype Energy Gun 29740 | -4/Warlord | Identified Vortex Rail 29749 | -4/Warlord | Found Vortex Shotgun 29940 | -4/Warlord | Warlord forces counterattacked 29985 | -4/Warlord | Spotted Striker 29994 | -4/Warlord | Destroyed Striker 30027 | -4/Warlord | Spotted Executioner 30028 | -4/Warlord | Spotted B-90 Cyclops 30030 | -4/Warlord | Spotted Striker 30039 | -4/Warlord | Allies destroyed Striker 30090 | -4/Warlord | Lost 11 allies 30096 | -4/Warlord | Spotted Executioner 30106 | -4/Warlord | Found Exp. Targeting Computer 30108 | -4/Warlord | Destroyed Executioner 30112 | -4/Warlord | Discovered new exit (range 18) 30138 | -4/Warlord | Found Prototype Device 30138 | -4/Warlord | Identified Adv. Kinecellerator 30140 | -4/Warlord | Lost 8 allies 30193 | -4/Warlord | Allies destroyed Striker 30215 | -4/Warlord | Destroyed Striker 30246 | -4/Warlord | Lost 8 allies 30250 | -4/Warlord | Entered Proximity Caves 30250 | -3/Proximity Caves | Accompanied by 1 ally 30530 | -3/Proximity Caves | Build established: Scavenger-Tank 30753 | -3/Proximity Caves | Discovered new exit (range 22) 30914 | -3/Proximity Caves | Fabricated Quantum Reactor? 30958 | -3/Proximity Caves | Build established: Scavenger-Gunner 30986 | -3/Proximity Caves | Spotted B-86 Titan 31587 | -3/Proximity Caves | Build established: Scavenger-Mutant 31615 | -3/Proximity Caves | Fabricated Hvy. Treads? 31738 | -3/Proximity Caves | Entered Research 31738 | -3/Research | Accompanied by 8 allies 31738 | -3/Research | Evolved 2 slots: Power x1, Propulsion x1 31739 | -3/Research | Identified exit to Quarantine 31740 | -3/Research | Loaded intel: 4 fabricator locations 31741 | -3/Research | Loaded intel: 4 garrison access locations 31938 | -3/Research | Revision forces began assault on 0b10 32004 | -3/Research | Found Prototype Launcher 32004 | -3/Research | Identified Hellfire Missile Launcher 32052 | -3/Research | Met up with Revision 17++ 32103 | -3/Research | Build established: Scavenger-Gunner 32229 | -3/Research | Lost 3 allies 32293 | -3/Research | Identified exit to Armory 32293 | -3/Research | Identified exit to Research 32438 | -3/Research | Research terminal network offline 32459 | -3/Research | Spotted B-90 Cyclops 32467 | -3/Research | Allies destroyed B-90 Cyclops 32562 | -3/Research | Spotted Striker 32572 | -3/Research | Fabricated Exp. Focal Shield (x1) 32767 | -3/Research | Found Prototype Launcher 32767 | -3/Research | Identified Tactical Quantum Warhead 32876 | -3/Research | Found Exp. Core Analyzer 32898 | -3/Research | Entered Armory 32898 | -3/Armory | Accompanied by 1 ally 32899 | -3/Armory | Loaded intel: 2 repair station locations 33027 | -3/Armory | Found Prototype Processor 33027 | -3/Armory | Identified Spectral Analyzer 33035 | -3/Armory | Found Prototype Hackware 33035 | -3/Armory | Identified Exp. System Shield 33133 | -3/Armory | Lost 3 parts (1n1u1w) 33153 | -3/Armory | Destroyed 9 combat bots 33165 | -3/Armory | System corruption reached 10% 33417 | -3/Armory | Destroyed 7 combat bots 33426 | -3/Armory | Lost 6 parts (1p4n1w) 33687 | -3/Armory | First assault squad dispatched 33775 | -3/Armory | Destroyed 7 combat bots 33779 | -3/Armory | Lost 8 parts (2p5u1w) 33855 | -3/Armory | Core integrity fell below 50% 33887 | -3/Armory | Lost 3 parts (1n1u1w) 33955 | -3/Armory | P-80 Master assimilated allied Assassin 8b 33994 | -3/Armory | Discovered new exit (range 3) 33995 | -3/Armory | Entered Lab 33995 | -3/Lab | Discovered exit to Research (range 9) 34001 | -3/Lab | Hidden lab's door opened automatically 34001 | -3/Lab | Sensor layout match revealed 34002 | -3/Lab | Gained access to the hidden lab's interior 34090 | -3/Lab | Found Alien Artifact 34090 | -3/Lab | Identified Core Reset Matrix 34090 | -3/Lab | Used Core Reset Matrix 34094 | -3/Lab | Sensed 3 artifacts in vicinity 34095 | -3/Lab | Found Transdimensional Reconstructor 34113 | -3/Lab | Found Integrated Reactor 34132 | -3/Lab | Found Core Expander 34132 | -3/Lab | Installed Core Expander, added new Power slot 34171 | -3/Lab | Found Prototype Hackware 34171 | -3/Lab | Identified Quantum Router 34172 | -3/Lab | Detected by scanners 34176 | -3/Lab | Found Prototype Protection 34176 | -3/Lab | Identified Med. Regenerative Plating 34180 | -3/Lab | Found Prototype Energy Gun 34180 | -3/Lab | Identified Tachyon Dispersion Ray 34188 | -3/Lab | Unable to decrypt terminal 34274 | -3/Lab | Discovered exit to Research (range 6) 34276 | -3/Lab | Entered Research 34276 | -2/Research | Warlord forces began assault on 0b10 34276 | -2/Research | Evolved 2 slots: Utility x1, Weapon x1 34301 | -2/Research | Distinguished unit "Shockpunchers" dispatched to help 34381 | -2/Research | Lost 3 allies 34386 | -2/Research | Research machine network offline 34420 | -2/Research | Met up with Warlord 34491 | -2/Research | Discovered new exit (range 10) 34573 | -2/Research | Spotted Tracker 34573 | -2/Research | Spotted Tracker 34612 | -2/Research | Destroyed Tracker 34617 | -2/Research | Installed Integrated Reactor, increased core energy generation (+10) 34619 | -2/Research | Lost 7 allies 34855 | -2/Research | Spotted Executioner 34968 | -2/Research | Borebot progress halted 35091 | -2/Research | Spotted Tracker 35093 | -2/Research | Spotted Tracker 35159 | -2/Research | Spotted Combat Programmer 35227 | -2/Research | Found Prototype Processor 35227 | -2/Research | Identified Exp. Melee Analysis Suite 35272 | -2/Research | Found Prototype Device 35272 | -2/Research | Identified Exp. Phase Shifter 35320 | -2/Research | Found Prototype Processor 35320 | -2/Research | Identified Exp. Terrain Scan Processor 35384 | -2/Research | Spotted B-90 Cyclops 35397 | -2/Research | Destroyed 8 combat bots 35661 | -2/Research | Discovered new exit (range 11) 35703 | -2/Research | Spotted Striker 35727 | -2/Research | Destroyed Striker 35741 | -2/Research | Entered Access 35741 | -1/Access | Evolved 2 slots: Utility x2 35952 | -1/Access | Garrison activated, responded to threat 36013 | -1/Access | Destroyed 7 combat bots 36034 | -1/Access | Garrison activated, responded to threat 36104 | -1/Access | Build established: Hacker-Gunner 36198 | -1/Access | Garrison activated, responded to threat 36282 | -1/Access | First assault squad dispatched 36401 | -1/Access | Intercept squad dispatched 36417 | -1/Access | Discovered new exit (range 6) 36428 | -1/Access | Spotted Tracker 36428 | -1/Access | Spotted Tracker 36430 | -1/Access | Destroyed Tracker 36433 | -1/Access | Destroyed Tracker 36452 | -1/Access | Spotted Combat Programmer 36453 | -1/Access | Spotted Combat Programmer 36455 | *** | Heading to fleet! Last Messages --------------- 36449_ U-05 Engineer builds a Wall. 36451_ C-30 ARC bursts open for emergency deployment. 36451_ G-73 Enforcer unfolds itself. 36451_ G-73 Enforcer destroyed. 36451_ M-36 Artificer unfolds itself. 36451_ C-30 ARC destroyed. 36451_ M-36 Artificer destroyed. 36451_ U-05 Engineer lays Concrete. 36452_ Fabnet algorithm triggers G-73 Enforcer IFF filter rewrite. 36452_ G-73 Enforcer destroyed. 36453_ EMDS Slug penetrates G-73 Enforcer. 36453_ G-73 Enforcer destroyed. 36453_ Terminal disabled. 36453_ Destroyed Unknown Wheel. 36453_ Destroyed Unknown Engine. 36453_ U-05 Engineer destroyed. 36453_ U-05 Engineer lays Concrete. 36454_ U-05 Engineer builds a Wall. 36454_ U-05 Engineer lays Concrete. 36454_ Penetrated by EMDS Slug. Map ----- +----------------------------------------------------+ | ?????????????????????????????????????????????????? | | ??????????A??????????????????????????????????????? | | ?????????????????????????????????????????????????? | | ?????????????????????????????????????????????????? | | ?????????????????????????????????????????????????? | | ?????????????????????????????????????????????????? | | ?????????????????????????????????????????????????? | | ?????????????????????????????????????????????????? | | ?????????????????????????????????????????????????? | | ?????????????????????????????????????????????????? | | ?????????????????????????????????????????????????? | | ?????????????????????????????????????????????????? | | ?????????????????????????????????????????????????? | | ?????????????????????????????????????????????????? | | ????????????????????????????????????A????????????? | | ?????????????????????????????????????????????????? | | ?????????????????????????????????????????????????? | | ?????????????????????????????????????????????????? | | ?????????????????????????????????????????????????? | | ?????????????????????????????????????????????????? | | ???????????????????#""""""""""#??????????????????? | | ???????????????????# #??????????????????? | | ???????????????????# #??????????????????? | | ???????????????????# #??????????????????? | | ???????????????????# "" #??????????????????? | | ???????????????????# "@ #??????????????????? | | ???????????????????# #??????????????????? | | ???????????????????# #??????????????????? | | ???????????????????# #??????????????????? | | ??????????????????## ##?????????????????? | | ??????????????????# #?????????????????? | | ??????????????????##"" ##?????????????????? | | ???????????????????#"" ?????????????????? | | ???????????????????#"" ????????????????? | | ???????????????????#T ???????????????? | | ???????????????????#" ??????????????? | | ???????????????????#"" % ?????????????? | | ????????????########"" [! ####?????????? | | ??????+ [%[ #?????????? | | ??????# =*%g #?????????? | | ??????# ############# %= ###???????? | | ???????????????????????## #"########? | | ????????????????????????? # pp# #? | | ?????????????????????????##u u + # #? | | ??????????????????????????# # # #? | | ??????????????????????????# # # " #? | | ??????????????????????????# # # """ #? | | ??????????????????????????# # # """ #? | | ??????????????????????????# # # " #? | | ?????????????????????????## # # #? | +----------------------------------------------------+ Best States ------------- Heat Dissipation 98 Coolant Potential 340 Energy Generation 73 Energy Capacity 600 Matter Stores 700 Matter Capacity 700 Sight Range 24 Terrain Scan Density 10 Jamming Range 14 Cloak Strength 4 Armor Coverage 900 Resistance: KI 30 Resistance: TH 30 Resistance: EX 25 Propulsion Shielding 90 Point Defense Rating 240 Weapon Cycling 20 Phase Shifting 20 Evasion (%) 60 Targeting Accuracy 24 Core Analysis 8 Recoil Reduction 8 Matter Filtering 50 Energy Filtering 30 Kinecelleration 50 Offensive Hacking 34 Defensive Hacking 39 Item Schematics ----------------- None Robot Schematics ------------------ None Fabricated ------------ Magnetic Acceleration Cannon | x2 | -7/Factory | Preloaded Quantum Reactor | x2 | -3/Proximity Caves | Preloaded Hvy. Treads | x2 | -3/Proximity Caves Exp. Focal Shield | x1 | -3/Research | Preloaded Alien Tech Used ----------------- Integrated Dissipator Transdimensional Reconstructor Core Reset Matrix Core Expander Integrated Reactor Achievements -------------- None Challenges ------------ None Game ------ Seed CoreBombSabre Manual? 0 Play Time 05:33:51 Cumulative 186.0 hours Start 2024.07.05 @ 17:56:57 End 2024.07.08 @ 16:53:08 Sessions 5 Manual Loads 0 Difficulty Rogue Special Mode None Game No. 86 Rogue 86 Adventurer 0 Explorer 0 Win Type 2 Total 4 Types 2/0/2/0/0/0/0/0/0 Lore% 72 Gallery% 82 Achievement% 61 Wizard Run 0 Options --------- Layout 0 ASCII 0 Keyboard 0 Movement Mouse Keybinds 0 Fullscreen 2 Font 14/SmallcapsGlow Map View 72x54 Zoom Use 0% Tactical HUD 1 Map Filters NONE Filters NONE Steam 1 RUN: e38150b2-a6b7-48a1-9f43-4565d8960145